Workbook

Sheet ИТОГ
A1: Продажи на 02.01.2018 | G1: РЕЗУЛЬТАТ ПО ДНЯМ | NI1: РЕЗУЛЬТАТ ПО НЕДЕЛЯМ | PK1: РЕЗУЛЬТАТ ПО МЕСЯЦАМ
A2: Название региона | B2: Федеральный округ | C2: Дата открытия региона | D2: Год | E2: Показатели | F2: Ед.изм. | G2: текущая год | H2: 2018-01-01 | I2: 2018-01-02 | J2: 2018-01-03 | K2: 2018-01-04 | L2: 2018-01-05 | M2: 2018-01-06 | N2: 2018-01-07 | O2: 2018-01-08 | P2: 2018-01-09 | Q2: 2018-01-10 | R2: 2018-01-11 | S2: 2018-01-12 | T2: 2018-01-13 | U2: 2018-01-14 | V2: 2018-01-15 | W2: 2018-01-16 | X2: 2018-01-17 | Y2: 2018-01-18 | Z2: 2018-01-19 | AA2: 2018-01-20 | AB2: 2018-01-21 | AC2: 2018-01-22 | AD2: 2018-01-23 | AE2: 2018-01-24 | AF2: 2018-01-25 | AG2: 2018-01-26 | AH2: 2018-01-27 | AI2: 2018-01-28 | AJ2: 2018-01-29 | AK2: 2018-01-30 | AL2: 2018-01-31 | AM2: 2018-02-01 | AN2: 2018-02-02 | AO2: 2018-02-03 | AP2: 2018-02-04 | AQ2: 2018-02-05 | AR2: 2018-02-06 | AS2: 2018-02-07 | AT2: 2018-02-08 | AU2: 2018-02-09 | AV2: 2018-02-10 | AW2: 2018-02-11 | AX2: 2018-02-12 | AY2: 2018-02-13 | AZ2: 2018-02-14 | BA2: 2018-02-15 | BB2: 2018-02-16 | BC2: 2018-02-17 | BD2: 2018-02-18 | BE2: 2018-02-19 | BF2: 2018-02-20 | BG2: 2018-02-21 | BH2: 2018-02-22 | BI2: 2018-02-23 | BJ2: 2018-02-24 | BK2: 2018-02-25 | BL2: 2018-02-26 | BM2: 2018-02-27 | BN2: 2018-02-28 | BO2: 2018-03-01 | BP2: 2018-03-02 | BQ2: 2018-03-03 | BR2: 2018-03-04 | BS2: 2018-03-05 | BT2: 2018-03-06 | BU2: 2018-03-07 | BV2: 2018-03-08 | BW2: 2018-03-09 | BX2: 2018-03-10 | BY2: 2018-03-11 | BZ2: 2018-03-12 | CA2: 2018-03-13 | CB2: 2018-03-14 | CC2: 2018-03-15 | CD2: 2018-03-16 | CE2: 2018-03-17 | CF2: 2018-03-18 | CG2: 2018-03-19 | CH2: 2018-03-20 | CI2: 2018-03-21 | CJ2: 2018-03-22 | CK2: 2018-03-23 | CL2: 2018-03-24 | CM2: 2018-03-25 | CN2: 2018-03-26 | CO2: 2018-03-27 | CP2: 2018-03-28 | CQ2: 2018-03-29 | CR2: 2018-03-30 | CS2: 2018-03-31 | CT2: 2018-04-01 | CU2: 2018-04-02 | CV2: 2018-04-03 | CW2: 2018-04-04 | CX2: 2018-04-05 | CY2: 2018-04-06 | CZ2: 2018-04-07 | DA2: 2018-04-08 | DB2: 2018-04-09 | DC2: 2018-04-10 | DD2: 2018-04-11 | DE2: 2018-04-12 | DF2: 2018-04-13 | DG2: 2018-04-14 | DH2: 2018-04-15 | DI2: 2018-04-16 | DJ2: 2018-04-17 | DK2: 2018-04-18 | DL2: 2018-04-19 | DM2: 2018-04-20 | DN2: 2018-04-21 | DO2: 2018-04-22 | DP2: 2018-04-23 | DQ2: 2018-04-24 | DR2: 2018-04-25 | DS2: 2018-04-26 | DT2: 2018-04-27 | DU2: 2018-04-28 | DV2: 2018-04-29 | DW2: 2018-04-30 | DX2: 2018-05-01 | DY2: 2018-05-02 | DZ2: 2018-05-03 | EA2: 2018-05-04 | EB2: 2018-05-05 | EC2: 2018-05-06 | ED2: 2018-05-07 | EE2: 2018-05-08 | EF2: 2018-05-09 | EG2: 2018-05-10 | EH2: 2018-05-11 | EI2: 2018-05-12 | EJ2: 2018-05-13 | EK2: 2018-05-14 | EL2: 2018-05-15 | EM2: 2018-05-16 | EN2: 2018-05-17 | EO2: 2018-05-18 | EP2: 2018-05-19 | EQ2: 2018-05-20 | ER2: 2018-05-21 | ES2: 2018-05-22 | ET2: 2018-05-23 | EU2: 2018-05-24 | EV2: 2018-05-25 | EW2: 2018-05-26 | EX2: 2018-05-27 | EY2: 2018-05-28 | EZ2: 2018-05-29 | FA2: 2018-05-30 | FB2: 2018-05-31 | FC2: 2018-06-01 | FD2: 2018-06-02 | FE2: 2018-06-03 | FF2: 2018-06-04 | FG2: 2018-06-05 | FH2: 2018-06-06 | FI2: 2018-06-07 | FJ2: 2018-06-08 | FK2: 2018-06-09 | FL2: 2018-06-10 | FM2: 2018-06-11 | FN2: 2018-06-12 | FO2: 2018-06-13 | FP2: 2018-06-14 | FQ2: 2018-06-15 | FR2: 2018-06-16 | FS2: 2018-06-17 | FT2: 2018-06-18 | FU2: 2018-06-19 | FV2: 2018-06-20 | FW2: 2018-06-21 | FX2: 2018-06-22 | FY2: 2018-06-23 | FZ2: 2018-06-24 | GA2: 2018-06-25 | GB2: 2018-06-26 | GC2: 2018-06-27 | GD2: 2018-06-28 | GE2: 2018-06-29 | GF2: 2018-06-30 | GG2: 2018-07-01 | GH2: 2018-07-02 | GI2: 2018-07-03 | GJ2: 2018-07-04 | GK2: 2018-07-05 | GL2: 2018-07-06 | GM2: 2018-07-07 | GN2: 2018-07-08 | GO2: 2018-07-09 | GP2: 2018-07-10 | GQ2: 2018-07-11 | GR2: 2018-07-12 | GS2: 2018-07-13 | GT2: 2018-07-14 | GU2: 2018-07-15 | GV2: 2018-07-16 | GW2: 2018-07-17 | GX2: 2018-07-18 | GY2: 2018-07-19 | GZ2: 2018-07-20 | HA2: 2018-07-21 | HB2: 2018-07-22 | HC2: 2018-07-23 | HD2: 2018-07-24 | HE2: 2018-07-25 | HF2: 2018-07-26 | HG2: 2018-07-27 | HH2: 2018-07-28 | HI2: 2018-07-29 | HJ2: 2018-07-30 | HK2: 2018-07-31 | HL2: 2018-08-01 | HM2: 2018-08-02 | HN2: 2018-08-03 | HO2: 2018-08-04 | HP2: 2018-08-05 | HQ2: 2018-08-06 | HR2: 2018-08-07 | HS2: 2018-08-08 | HT2: 2018-08-09 | HU2: 2018-08-10 | HV2: 2018-08-11 | HW2: 2018-08-12 | HX2: 2018-08-13 | HY2: 2018-08-14 | HZ2: 2018-08-15 | IA2: 2018-08-16 | IB2: 2018-08-17 | IC2: 2018-08-18 | ID2: 2018-08-19 | IE2: 2018-08-20 | IF2: 2018-08-21 | IG2: 2018-08-22 | IH2: 2018-08-23 | II2: 2018-08-24 | IJ2: 2018-08-25 | IK2: 2018-08-26 | IL2: 2018-08-27 | IM2: 2018-08-28 | IN2: 2018-08-29 | IO2: 2018-08-30 | IP2: 2018-08-31 | IQ2: 2018-09-01 | IR2: 2018-09-02 | IS2: 2018-09-03 | IT2: 2018-09-04 | IU2: 2018-09-05 | IV2: 2018-09-06 | IW2: 2018-09-07 | IX2: 2018-09-08 | IY2: 2018-09-09 | IZ2: 2018-09-10 | JA2: 2018-09-11 | JB2: 2018-09-12 | JC2: 2018-09-13 | JD2: 2018-09-14 | JE2: 2018-09-15 | JF2: 2018-09-16 | JG2: 2018-09-17 | JH2: 2018-09-18 | JI2: 2018-09-19 | JJ2: 2018-09-20 | JK2: 2018-09-21 | JL2: 2018-09-22 | JM2: 2018-09-23 | JN2: 2018-09-24 | JO2: 2018-09-25 | JP2: 2018-09-26 | JQ2: 2018-09-27 | JR2: 2018-09-28 | JS2: 2018-09-29 | JT2: 2018-09-30 | JU2: 2018-10-01 | JV2: 2018-10-02 | JW2: 2018-10-03 | JX2: 2018-10-04 | JY2: 2018-10-05 | JZ2: 2018-10-06 | KA2: 2018-10-07 | KB2: 2018-10-08 | KC2: 2018-10-09 | KD2: 2018-10-10 | KE2: 2018-10-11 | KF2: 2018-10-12 | KG2: 2018-10-13 | KH2: 2018-10-14 | KI2: 2018-10-15 | KJ2: 2018-10-16 | KK2: 2018-10-17 | KL2: 2018-10-18 | KM2: 2018-10-19 | KN2: 2018-10-20 | KO2: 2018-10-21 | KP2: 2018-10-22 | KQ2: 2018-10-23 | KR2: 2018-10-24 | KS2: 2018-10-25 | KT2: 2018-10-26 | KU2: 2018-10-27 | KV2: 2018-10-28 | KW2: 2018-10-29 | KX2: 2018-10-30 | KY2: 2018-10-31 | KZ2: 2018-11-01 | LA2: 2018-11-02 | LB2: 2018-11-03 | LC2: 2018-11-04 | LD2: 2018-11-05 | LE2: 2018-11-06 | LF2: 2018-11-07 | LG2: 2018-11-08 | LH2: 2018-11-09 | LI2: 2018-11-10 | LJ2: 2018-11-11 | LK2: 2018-11-12 | LL2: 2018-11-13 | LM2: 2018-11-14 | LN2: 2018-11-15 | LO2: 2018-11-16 | LP2: 2018-11-17 | LQ2: 2018-11-18 | LR2: 2018-11-19 | LS2: 2018-11-20 | LT2: 2018-11-21 | LU2: 2018-11-22 | LV2: 2018-11-23 | LW2: 2018-11-24 | LX2: 2018-11-25 | LY2: 2018-11-26 | LZ2: 2018-11-27 | MA2: 2018-11-28 | MB2: 2018-11-29 | MC2: 2018-11-30 | MD2: 2018-12-01 | ME2: 2018-12-02 | MF2: 2018-12-03 | MG2: 2018-12-04 | MH2: 2018-12-05 | MI2: 2018-12-06 | MJ2: 2018-12-07 | MK2: 2018-12-08 | ML2: 2018-12-09 | MM2: 2018-12-10 | MN2: 2018-12-11 | MO2: 2018-12-12 | MP2: 2018-12-13 | MQ2: 2018-12-14 | MR2: 2018-12-15 | MS2: 2018-12-16 | MT2: 2018-12-17 | MU2: 2018-12-18 | MV2: 2018-12-19 | MW2: 2018-12-20 | MX2: 2018-12-21 | MY2: 2018-12-22 | MZ2: 2018-12-23 | NA2: 2018-12-24 | NB2: 2018-12-25 | NC2: 2018-12-26 | ND2: 2018-12-27 | NE2: 2018-12-28 | NF2: 2018-12-29 | NG2: 2018-12-30 | NH2: 2018-12-31 | NJ2: =TEXT(INDEX($H$2:$NH$2,1,MATCH(NJ$3,$H$3:$NH$3,0)),"ДД.ММ-")&IF(NJ$3=53,TEXT($NH$2,"ДД.ММ.ГГ"),TEXT(INDEX($H$2:$NH$2,1,MATCH(NJ$3+1,$H$3:$NH$3,0))-1,"ДД.ММ.ГГ")) -> 01.01-07.01.18 | NK2: =TEXT(INDEX($H$2:$NH$2,1,MATCH(NK$3,$H$3:$NH$3,0)),"ДД.ММ-")&IF(NK$3=53,TEXT($NH$2,"ДД.ММ.ГГ"),TEXT(INDEX($H$2:$NH$2,1,MATCH(NK$3+1,$H$3:$NH$3,0))-1,"ДД.ММ.ГГ")) -> 08.01-14.01.18 | NL2: 15.01-21.01.18 | NM2: 22.01-28.01.18 | NN2: 29.01-04.02.18 | NO2: 05.02-11.02.18 | NP2: 12.02-18.02.18 | NQ2: 19.02-25.02.18 | NR2: 26.02-04.03.18 | NS2: 05.03-11.03.18 | NT2: 12.03-18.03.18 | NU2: 19.03-25.03.18 | NV2: 26.03-01.04.18 | NW2: 02.04-08.04.18 | NX2: 09.04-15.04.18 | NY2: 16.04-22.04.18 | NZ2: 23.04-29.04.18 | OA2: 30.04-06.05.18 | OB2: 07.05-13.05.18 | OC2: 14.05-20.05.18 | OD2: 21.05-27.05.18 | OE2: 28.05-03.06.18 | OF2: 04.06-10.06.18 | OG2: 11.06-17.06.18 | OH2: 18.06-24.06.18 | OI2: 25.06-01.07.18 | OJ2: 02.07-08.07.18 | OK2: 09.07-15.07.18 | OL2: 16.07-22.07.18 | OM2: 23.07-29.07.18 | ON2: 30.07-05.08.18 | OO2: 06.08-12.08.18 | OP2: 13.08-19.08.18 | OQ2: 20.08-26.08.18 | OR2: 27.08-02.09.18 | OS2: 03.09-09.09.18 | OT2: 10.09-16.09.18 | OU2: 17.09-23.09.18 | OV2: 24.09-30.09.18 | OW2: 01.10-07.10.18 | OX2: 08.10-14.10.18 | OY2: 15.10-21.10.18 | OZ2: 22.10-28.10.18 | PA2: 29.10-04.11.18 | PB2: 05.11-11.11.18 | PC2: 12.11-18.11.18 | PD2: 19.11-25.11.18 | PE2: 26.11-02.12.18 | PF2: 03.12-09.12.18 | PG2: 10.12-16.12.18 | PH2: 17.12-23.12.18 | PI2: 24.12-30.12.18 | PJ2: 31.12-31.12.18 | PL2: =$H$2 -> 2018-01-01 | PM2: =EDATE(PL2,1) -> 2018-02-01 | PN2: =EDATE(PM2,1) -> 2018-03-01 | PO2: =EDATE(PN2,1) -> 2018-04-01 | PP2: 2018-05-01 | PQ2: 2018-06-01 | PR2: 2018-07-01 | PS2: 2018-08-01 | PT2: 2018-09-01 | PU2: 2018-10-01 | PV2: 2018-11-01 | PW2: 2018-12-01 | PY2: ГОД | QA2: Усредненый прогноз | QB2: Прогноз по динамике роста | QC2: Оптимизированный прогноз | QD2: Планы | QE2: Процент выполнения планов | QF2: Доля по каналам сбыта | QH2: Празничные дни | QI2: Работа в выходной день | QJ2: Выходные дни
G3: номер недели | H3: 1 | I3: 1 | J3: 1 | K3: 1 | L3: 1 | M3: 1 | N3: 1 | O3: 2 | P3: 2 | Q3: 2 | R3: 2 | S3: 2 | T3: 2 | U3: 2 | V3: 3 | W3: 3 | X3: 3 | Y3: 3 | Z3: 3 | AA3: 3 | AB3: 3 | AC3: 4 | AD3: 4 | AE3: 4 | AF3: 4 | AG3: 4 | AH3: 4 | AI3: 4 | AJ3: 5 | AK3: 5 | AL3: 5 | AM3: 5 | AN3: 5 | AO3: 5 | AP3: 5 | AQ3: 6 | AR3: 6 | AS3: 6 | AT3: 6 | AU3: 6 | AV3: 6 | AW3: 6 | AX3: 7 | AY3: 7 | AZ3: 7 | BA3: 7 | BB3: 7 | BC3: 7 | BD3: 7 | BE3: 8 | BF3: 8 | BG3: 8 | BH3: 8 | BI3: 8 | BJ3: 8 | BK3: 8 | BL3: 9 | BM3: 9 | BN3: 9 | BO3: 9 | BP3: 9 | BQ3: 9 | BR3: 9 | BS3: 10 | BT3: 10 | BU3: 10 | BV3: 10 | BW3: 10 | BX3: 10 | BY3: 10 | BZ3: 11 | CA3: 11 | CB3: 11 | CC3: 11 | CD3: 11 | CE3: 11 | CF3: 11 | CG3: 12 | CH3: 12 | CI3: 12 | CJ3: 12 | CK3: 12 | CL3: 12 | CM3: 12 | CN3: 13 | CO3: 13 | CP3: 13 | CQ3: 13 | CR3: 13 | CS3: 13 | CT3: 13 | CU3: 14 | CV3: 14 | CW3: 14 | CX3: 14 | CY3: 14 | CZ3: 14 | DA3: 14 | DB3: 15 | DC3: 15 | DD3: 15 | DE3: 15 | DF3: 15 | DG3: 15 | DH3: 15 | DI3: 16 | DJ3: 16 | DK3: 16 | DL3: 16 | DM3: 16 | DN3: 16 | DO3: 16 | DP3: 17 | DQ3: 17 | DR3: 17 | DS3: 17 | DT3: 17 | DU3: 17 | DV3: 17 | DW3: 18 | DX3: 18 | DY3: 18 | DZ3: 18 | EA3: 18 | EB3: 18 | EC3: 18 | ED3: 19 | EE3: 19 | EF3: 19 | EG3: 19 | EH3: 19 | EI3: 19 | EJ3: 19 | EK3: 20 | EL3: 20 | EM3: 20 | EN3: 20 | EO3: 20 | EP3: 20 | EQ3: 20 | ER3: 21 | ES3: 21 | ET3: 21 | EU3: 21 | EV3: 21 | EW3: 21 | EX3: 21 | EY3: 22 | EZ3: 22 | FA3: 22 | FB3: 22 | FC3: 22 | FD3: 22 | FE3: 22 | FF3: 23 | FG3: 23 | FH3: 23 | FI3: 23 | FJ3: 23 | FK3: 23 | FL3: 23 | FM3: 24 | FN3: 24 | FO3: 24 | FP3: 24 | FQ3: 24 | FR3: 24 | FS3: 24 | FT3: 25 | FU3: 25 | FV3: 25 | FW3: 25 | FX3: 25 | FY3: 25 | FZ3: 25 | GA3: 26 | GB3: 26 | GC3: 26 | GD3: 26 | GE3: 26 | GF3: 26 | GG3: 26 | GH3: 27 | GI3: 27 | GJ3: 27 | GK3: 27 | GL3: 27 | GM3: 27 | GN3: 27 | GO3: 28 | GP3: 28 | GQ3: 28 | GR3: 28 | GS3: 28 | GT3: 28 | GU3: 28 | GV3: 29 | GW3: 29 | GX3: 29 | GY3: 29 | GZ3: 29 | HA3: 29 | HB3: 29 | HC3: 30 | HD3: 30 | HE3: 30 | HF3: 30 | HG3: 30 | HH3: 30 | HI3: 30 | HJ3: 31 | HK3: 31 | HL3: 31 | HM3: 31 | HN3: 31 | HO3: 31 | HP3: 31 | HQ3: 32 | HR3: 32 | HS3: 32 | HT3: 32 | HU3: 32 | HV3: 32 | HW3: 32 | HX3: 33 | HY3: 33 | HZ3: 33 | IA3: 33 | IB3: 33 | IC3: 33 | ID3: 33 | IE3: 34 | IF3: 34 | IG3: 34 | IH3: 34 | II3: 34 | IJ3: 34 | IK3: 34 | IL3: 35 | IM3: 35 | IN3: 35 | IO3: 35 | IP3: 35 | IQ3: 35 | IR3: 35 | IS3: 36 | IT3: 36 | IU3: 36 | IV3: 36 | IW3: 36 | IX3: 36 | IY3: 36 | IZ3: 37 | JA3: 37 | JB3: 37 | JC3: 37 | JD3: 37 | JE3: 37 | JF3: 37 | JG3: 38 | JH3: 38 | JI3: 38 | JJ3: 38 | JK3: 38 | JL3: 38 | JM3: 38 | JN3: 39 | JO3: 39 | JP3: 39 | JQ3: 39 | JR3: 39 | JS3: 39 | JT3: 39 | JU3: 40 | JV3: 40 | JW3: 40 | JX3: 40 | JY3: 40 | JZ3: 40 | KA3: 40 | KB3: 41 | KC3: 41 | KD3: 41 | KE3: 41 | KF3: 41 | KG3: 41 | KH3: 41 | KI3: 42 | KJ3: 42 | KK3: 42 | KL3: 42 | KM3: 42 | KN3: 42 | KO3: 42 | KP3: 43 | KQ3: 43 | KR3: 43 | KS3: 43 | KT3: 43 | KU3: 43 | KV3: 43 | KW3: 44 | KX3: 44 | KY3: 44 | KZ3: 44 | LA3: 44 | LB3: 44 | LC3: 44 | LD3: 45 | LE3: 45 | LF3: 45 | LG3: 45 | LH3: 45 | LI3: 45 | LJ3: 45 | LK3: 46 | LL3: 46 | LM3: 46 | LN3: 46 | LO3: 46 | LP3: 46 | LQ3: 46 | LR3: 47 | LS3: 47 | LT3: 47 | LU3: 47 | LV3: 47 | LW3: 47 | LX3: 47 | LY3: 48 | LZ3: 48 | MA3: 48 | MB3: 48 | MC3: 48 | MD3: 48 | ME3: 48 | MF3: 49 | MG3: 49 | MH3: 49 | MI3: 49 | MJ3: 49 | MK3: 49 | ML3: 49 | MM3: 50 | MN3: 50 | MO3: 50 | MP3: 50 | MQ3: 50 | MR3: 50 | MS3: 50 | MT3: 51 | MU3: 51 | MV3: 51 | MW3: 51 | MX3: 51 | MY3: 51 | MZ3: 51 | NA3: 52 | NB3: 52 | NC3: 52 | ND3: 52 | NE3: 52 | NF3: 52 | NG3: 52 | NH3: 53 | NJ3: 1 | NK3: 2 | NL3: 3 | NM3: 4 | NN3: 5 | NO3: 6 | NP3: 7 | NQ3: 8 | NR3: 9 | NS3: 10 | NT3: 11 | NU3: 12 | NV3: 13 | NW3: 14 | NX3: 15 | NY3: 16 | NZ3: 17 | OA3: 18 | OB3: 19 | OC3: 20 | OD3: 21 | OE3: 22 | OF3: 23 | OG3: 24 | OH3: 25 | OI3: 26 | OJ3: 27 | OK3: 28 | OL3: 29 | OM3: 30 | ON3: 31 | OO3: 32 | OP3: 33 | OQ3: 34 | OR3: 35 | OS3: 36 | OT3: 37 | OU3: 38 | OV3: 39 | OW3: 40 | OX3: 41 | OY3: 42 | OZ3: 43 | PA3: 44 | PB3: 45 | PC3: 46 | PD3: 47 | PE3: 48 | PF3: 49 | PG3: 50 | PH3: 51 | PI3: 52 | PJ3: 53
G4: день недели | H4: 1 | I4: 2 | J4: 3 | K4: 4 | L4: 5 | M4: 6 | N4: 7 | O4: 1 | P4: 2 | Q4: 3 | R4: 4 | S4: 5 | T4: 6 | U4: 7 | V4: 1 | W4: 2 | X4: 3 | Y4: 4 | Z4: 5 | AA4: 6 | AB4: 7 | AC4: 1 | AD4: 2 | AE4: 3 | AF4: 4 | AG4: 5 | AH4: 6 | AI4: 7 | AJ4: 1 | AK4: 2 | AL4: 3 | AM4: 4 | AN4: 5 | AO4: 6 | AP4: 7 | AQ4: 1 | AR4: 2 | AS4: 3 | AT4: 4 | AU4: 5 | AV4: 6 | AW4: 7 | AX4: 1 | AY4: 2 | AZ4: 3 | BA4: 4 | BB4: 5 | BC4: 6 | BD4: 7 | BE4: 1 | BF4: 2 | BG4: 3 | BH4: 4 | BI4: 5 | BJ4: 6 | BK4: 7 | BL4: 1 | BM4: 2 | BN4: 3 | BO4: 4 | BP4: 5 | BQ4: 6 | BR4: 7 | BS4: 1 | BT4: 2 | BU4: 3 | BV4: 4 | BW4: 5 | BX4: 6 | BY4: 7 | BZ4: 1 | CA4: 2 | CB4: 3 | CC4: 4 | CD4: 5 | CE4: 6 | CF4: 7 | CG4: 1 | CH4: 2 | CI4: 3 | CJ4: 4 | CK4: 5 | CL4: 6 | CM4: 7 | CN4: 1 | CO4: 2 | CP4: 3 | CQ4: 4 | CR4: 5 | CS4: 6 | CT4: 7 | CU4: 1 | CV4: 2 | CW4: 3 | CX4: 4 | CY4: 5 | CZ4: 6 | DA4: 7 | DB4: 1 | DC4: 2 | DD4: 3 | DE4: 4 | DF4: 5 | DG4: 6 | DH4: 7 | DI4: 1 | DJ4: 2 | DK4: 3 | DL4: 4 | DM4: 5 | DN4: 6 | DO4: 7 | DP4: 1 | DQ4: 2 | DR4: 3 | DS4: 4 | DT4: 5 | DU4: 6 | DV4: 7 | DW4: 1 | DX4: 2 | DY4: 3 | DZ4: 4 | EA4: 5 | EB4: 6 | EC4: 7 | ED4: 1 | EE4: 2 | EF4: 3 | EG4: 4 | EH4: 5 | EI4: 6 | EJ4: 7 | EK4: 1 | EL4: 2 | EM4: 3 | EN4: 4 | EO4: 5 | EP4: 6 | EQ4: 7 | ER4: 1 | ES4: 2 | ET4: 3 | EU4: 4 | EV4: 5 | EW4: 6 | EX4: 7 | EY4: 1 | EZ4: 2 | FA4: 3 | FB4: 4 | FC4: 5 | FD4: 6 | FE4: 7 | FF4: 1 | FG4: 2 | FH4: 3 | FI4: 4 | FJ4: 5 | FK4: 6 | FL4: 7 | FM4: 1 | FN4: 2 | FO4: 3 | FP4: 4 | FQ4: 5 | FR4: 6 | FS4: 7 | FT4: 1 | FU4: 2 | FV4: 3 | FW4: 4 | FX4: 5 | FY4: 6 | FZ4: 7 | GA4: 1 | GB4: 2 | GC4: 3 | GD4: 4 | GE4: 5 | GF4: 6 | GG4: 7 | GH4: 1 | GI4: 2 | GJ4: 3 | GK4: 4 | GL4: 5 | GM4: 6 | GN4: 7 | GO4: 1 | GP4: 2 | GQ4: 3 | GR4: 4 | GS4: 5 | GT4: 6 | GU4: 7 | GV4: 1 | GW4: 2 | GX4: 3 | GY4: 4 | GZ4: 5 | HA4: 6 | HB4: 7 | HC4: 1 | HD4: 2 | HE4: 3 | HF4: 4 | HG4: 5 | HH4: 6 | HI4: 7 | HJ4: 1 | HK4: 2 | HL4: 3 | HM4: 4 | HN4: 5 | HO4: 6 | HP4: 7 | HQ4: 1 | HR4: 2 | HS4: 3 | HT4: 4 | HU4: 5 | HV4: 6 | HW4: 7 | HX4: 1 | HY4: 2 | HZ4: 3 | IA4: 4 | IB4: 5 | IC4: 6 | ID4: 7 | IE4: 1 | IF4: 2 | IG4: 3 | IH4: 4 | II4: 5 | IJ4: 6 | IK4: 7 | IL4: 1 | IM4: 2 | IN4: 3 | IO4: 4 | IP4: 5 | IQ4: 6 | IR4: 7 | IS4: 1 | IT4: 2 | IU4: 3 | IV4: 4 | IW4: 5 | IX4: 6 | IY4: 7 | IZ4: 1 | JA4: 2 | JB4: 3 | JC4: 4 | JD4: 5 | JE4: 6 | JF4: 7 | JG4: 1 | JH4: 2 | JI4: 3 | JJ4: 4 | JK4: 5 | JL4: 6 | JM4: 7 | JN4: 1 | JO4: 2 | JP4: 3 | JQ4: 4 | JR4: 5 | JS4: 6 | JT4: 7 | JU4: 1 | JV4: 2 | JW4: 3 | JX4: 4 | JY4: 5 | JZ4: 6 | KA4: 7 | KB4: 1 | KC4: 2 | KD4: 3 | KE4: 4 | KF4: 5 | KG4: 6 | KH4: 7 | KI4: 1 | KJ4: 2 | KK4: 3 | KL4: 4 | KM4: 5 | KN4: 6 | KO4: 7 | KP4: 1 | KQ4: 2 | KR4: 3 | KS4: 4 | KT4: 5 | KU4: 6 | KV4: 7 | KW4: 1 | KX4: 2 | KY4: 3 | KZ4: 4 | LA4: 5 | LB4: 6 | LC4: 7 | LD4: 1 | LE4: 2 | LF4: 3 | LG4: 4 | LH4: 5 | LI4: 6 | LJ4: 7 | LK4: 1 | LL4: 2 | LM4: 3 | LN4: 4 | LO4: 5 | LP4: 6 | LQ4: 7 | LR4: 1 | LS4: 2 | LT4: 3 | LU4: 4 | LV4: 5 | LW4: 6 | LX4: 7 | LY4: 1 | LZ4: 2 | MA4: 3 | MB4: 4 | MC4: 5 | MD4: 6 | ME4: 7 | MF4: 1 | MG4: 2 | MH4: 3 | MI4: 4 | MJ4: 5 | MK4: 6 | ML4: 7 | MM4: 1 | MN4: 2 | MO4: 3 | MP4: 4 | MQ4: 5 | MR4: 6 | MS4: 7 | MT4: 1 | MU4: 2 | MV4: 3 | MW4: 4 | MX4: 5 | MY4: 6 | MZ4: 7 | NA4: 1 | NB4: 2 | NC4: 3 | ND4: 4 | NE4: 5 | NF4: 6 | NG4: 7 | NH4: 1
G5: месяц | H5: 1 | I5: 1 | J5: 1 | K5: 1 | L5: 1 | M5: 1 | N5: 1 | O5: 1 | P5: 1 | Q5: 1 | R5: 1 | S5: 1 | T5: 1 | U5: 1 | V5: 1 | W5: 1 | X5: 1 | Y5: 1 | Z5: 1 | AA5: 1 | AB5: 1 | AC5: 1 | AD5: 1 | AE5: 1 | AF5: 1 | AG5: 1 | AH5: 1 | AI5: 1 | AJ5: 1 | AK5: 1 | AL5: 1 | AM5: 2 | AN5: 2 | AO5: 2 | AP5: 2 | AQ5: 2 | AR5: 2 | AS5: 2 | AT5: 2 | AU5: 2 | AV5: 2 | AW5: 2 | AX5: 2 | AY5: 2 | AZ5: 2 | BA5: 2 | BB5: 2 | BC5: 2 | BD5: 2 | BE5: 2 | BF5: 2 | BG5: 2 | BH5: 2 | BI5: 2 | BJ5: 2 | BK5: 2 | BL5: 2 | BM5: 2 | BN5: 2 | BO5: 3 | BP5: 3 | BQ5: 3 | BR5: 3 | BS5: 3 | BT5: 3 | BU5: 3 | BV5: 3 | BW5: 3 | BX5: 3 | BY5: 3 | BZ5: 3 | CA5: 3 | CB5: 3 | CC5: 3 | CD5: 3 | CE5: 3 | CF5: 3 | CG5: 3 | CH5: 3 | CI5: 3 | CJ5: 3 | CK5: 3 | CL5: 3 | CM5: 3 | CN5: 3 | CO5: 3 | CP5: 3 | CQ5: 3 | CR5: 3 | CS5: 3 | CT5: 4 | CU5: 4 | CV5: 4 | CW5: 4 | CX5: 4 | CY5: 4 | CZ5: 4 | DA5: 4 | DB5: 4 | DC5: 4 | DD5: 4 | DE5: 4 | DF5: 4 | DG5: 4 | DH5: 4 | DI5: 4 | DJ5: 4 | DK5: 4 | DL5: 4 | DM5: 4 | DN5: 4 | DO5: 4 | DP5: 4 | DQ5: 4 | DR5: 4 | DS5: 4 | DT5: 4 | DU5: 4 | DV5: 4 | DW5: 4 | DX5: 5 | DY5: 5 | DZ5: 5 | EA5: 5 | EB5: 5 | EC5: 5 | ED5: 5 | EE5: 5 | EF5: 5 | EG5: 5 | EH5: 5 | EI5: 5 | EJ5: 5 | EK5: 5 | EL5: 5 | EM5: 5 | EN5: 5 | EO5: 5 | EP5: 5 | EQ5: 5 | ER5: 5 | ES5: 5 | ET5: 5 | EU5: 5 | EV5: 5 | EW5: 5 | EX5: 5 | EY5: 5 | EZ5: 5 | FA5: 5 | FB5: 5 | FC5: 6 | FD5: 6 | FE5: 6 | FF5: 6 | FG5: 6 | FH5: 6 | FI5: 6 | FJ5: 6 | FK5: 6 | FL5: 6 | FM5: 6 | FN5: 6 | FO5: 6 | FP5: 6 | FQ5: 6 | FR5: 6 | FS5: 6 | FT5: 6 | FU5: 6 | FV5: 6 | FW5: 6 | FX5: 6 | FY5: 6 | FZ5: 6 | GA5: 6 | GB5: 6 | GC5: 6 | GD5: 6 | GE5: 6 | GF5: 6 | GG5: 7 | GH5: 7 | GI5: 7 | GJ5: 7 | GK5: 7 | GL5: 7 | GM5: 7 | GN5: 7 | GO5: 7 | GP5: 7 | GQ5: 7 | GR5: 7 | GS5: 7 | GT5: 7 | GU5: 7 | GV5: 7 | GW5: 7 | GX5: 7 | GY5: 7 | GZ5: 7 | HA5: 7 | HB5: 7 | HC5: 7 | HD5: 7 | HE5: 7 | HF5: 7 | HG5: 7 | HH5: 7 | HI5: 7 | HJ5: 7 | HK5: 7 | HL5: 8 | HM5: 8 | HN5: 8 | HO5: 8 | HP5: 8 | HQ5: 8 | HR5: 8 | HS5: 8 | HT5: 8 | HU5: 8 | HV5: 8 | HW5: 8 | HX5: 8 | HY5: 8 | HZ5: 8 | IA5: 8 | IB5: 8 | IC5: 8 | ID5: 8 | IE5: 8 | IF5: 8 | IG5: 8 | IH5: 8 | II5: 8 | IJ5: 8 | IK5: 8 | IL5: 8 | IM5: 8 | IN5: 8 | IO5: 8 | IP5: 8 | IQ5: 9 | IR5: 9 | IS5: 9 | IT5: 9 | IU5: 9 | IV5: 9 | IW5: 9 | IX5: 9 | IY5: 9 | IZ5: 9 | JA5: 9 | JB5: 9 | JC5: 9 | JD5: 9 | JE5: 9 | JF5: 9 | JG5: 9 | JH5: 9 | JI5: 9 | JJ5: 9 | JK5: 9 | JL5: 9 | JM5: 9 | JN5: 9 | JO5: 9 | JP5: 9 | JQ5: 9 | JR5: 9 | JS5: 9 | JT5: 9 | JU5: 10 | JV5: 10 | JW5: 10 | JX5: 10 | JY5: 10 | JZ5: 10 | KA5: 10 | KB5: 10 | KC5: 10 | KD5: 10 | KE5: 10 | KF5: 10 | KG5: 10 | KH5: 10 | KI5: 10 | KJ5: 10 | KK5: 10 | KL5: 10 | KM5: 10 | KN5: 10 | KO5: 10 | KP5: 10 | KQ5: 10 | KR5: 10 | KS5: 10 | KT5: 10 | KU5: 10 | KV5: 10 | KW5: 10 | KX5: 10 | KY5: 10 | KZ5: 11 | LA5: 11 | LB5: 11 | LC5: 11 | LD5: 11 | LE5: 11 | LF5: 11 | LG5: 11 | LH5: 11 | LI5: 11 | LJ5: 11 | LK5: 11 | LL5: 11 | LM5: 11 | LN5: 11 | LO5: 11 | LP5: 11 | LQ5: 11 | LR5: 11 | LS5: 11 | LT5: 11 | LU5: 11 | LV5: 11 | LW5: 11 | LX5: 11 | LY5: 11 | LZ5: 11 | MA5: 11 | MB5: 11 | MC5: 11 | MD5: 12 | ME5: 12 | MF5: 12 | MG5: 12 | MH5: 12 | MI5: 12 | MJ5: 12 | MK5: 12 | ML5: 12 | MM5: 12 | MN5: 12 | MO5: 12 | MP5: 12 | MQ5: 12 | MR5: 12 | MS5: 12 | MT5: 12 | MU5: 12 | MV5: 12 | MW5: 12 | MX5: 12 | MY5: 12 | MZ5: 12 | NA5: 12 | NB5: 12 | NC5: 12 | ND5: 12 | NE5: 12 | NF5: 12 | NG5: 12 | NH5: 12 | PL5: 1 | PM5: 2 | PN5: 3 | PO5: 4 | PP5: 5 | PQ5: 6 | PR5: 7 | PS5: 8 | PT5: 9 | PU5: 10 | PV5: 11 | PW5: 12
G6: год | H6: 2018 | I6: 2018 | J6: 2018 | K6: 2018 | L6: 2018 | M6: 2018 | N6: 2018 | O6: 2018 | P6: 2018 | Q6: 2018 | R6: 2018 | S6: 2018 | T6: 2018 | U6: 2018 | V6: 2018 | W6: 2018 | X6: 2018 | Y6: 2018 | Z6: 2018 | AA6: 2018 | AB6: 2018 | AC6: 2018 | AD6: 2018 | AE6: 2018 | AF6: 2018 | AG6: 2018 | AH6: 2018 | AI6: 2018 | AJ6: 2018 | AK6: 2018 | AL6: 2018 | AM6: 2018 | AN6: 2018 | AO6: 2018 | AP6: 2018 | AQ6: 2018 | AR6: 2018 | AS6: 2018 | AT6: 2018 | AU6: 2018 | AV6: 2018 | AW6: 2018 | AX6: 2018 | AY6: 2018 | AZ6: 2018 | BA6: 2018 | BB6: 2018 | BC6: 2018 | BD6: 2018 | BE6: 2018 | BF6: 2018 | BG6: 2018 | BH6: 2018 | BI6: 2018 | BJ6: 2018 | BK6: 2018 | BL6: 2018 | BM6: 2018 | BN6: 2018 | BO6: 2018 | BP6: 2018 | BQ6: 2018 | BR6: 2018 | BS6: 2018 | BT6: 2018 | BU6: 2018 | BV6: 2018 | BW6: 2018 | BX6: 2018 | BY6: 2018 | BZ6: 2018 | CA6: 2018 | CB6: 2018 | CC6: 2018 | CD6: 2018 | CE6: 2018 | CF6: 2018 | CG6: 2018 | CH6: 2018 | CI6: 2018 | CJ6: 2018 | CK6: 2018 | CL6: 2018 | CM6: 2018 | CN6: 2018 | CO6: 2018 | CP6: 2018 | CQ6: 2018 | CR6: 2018 | CS6: 2018 | CT6: 2018 | CU6: 2018 | CV6: 2018 | CW6: 2018 | CX6: 2018 | CY6: 2018 | CZ6: 2018 | DA6: 2018 | DB6: 2018 | DC6: 2018 | DD6: 2018 | DE6: 2018 | DF6: 2018 | DG6: 2018 | DH6: 2018 | DI6: 2018 | DJ6: 2018 | DK6: 2018 | DL6: 2018 | DM6: 2018 | DN6: 2018 | DO6: 2018 | DP6: 2018 | DQ6: 2018 | DR6: 2018 | DS6: 2018 | DT6: 2018 | DU6: 2018 | DV6: 2018 | DW6: 2018 | DX6: 2018 | DY6: 2018 | DZ6: 2018 | EA6: 2018 | EB6: 2018 | EC6: 2018 | ED6: 2018 | EE6: 2018 | EF6: 2018 | EG6: 2018 | EH6: 2018 | EI6: 2018 | EJ6: 2018 | EK6: 2018 | EL6: 2018 | EM6: 2018 | EN6: 2018 | EO6: 2018 | EP6: 2018 | EQ6: 2018 | ER6: 2018 | ES6: 2018 | ET6: 2018 | EU6: 2018 | EV6: 2018 | EW6: 2018 | EX6: 2018 | EY6: 2018 | EZ6: 2018 | FA6: 2018 | FB6: 2018 | FC6: 2018 | FD6: 2018 | FE6: 2018 | FF6: 2018 | FG6: 2018 | FH6: 2018 | FI6: 2018 | FJ6: 2018 | FK6: 2018 | FL6: 2018 | FM6: 2018 | FN6: 2018 | FO6: 2018 | FP6: 2018 | FQ6: 2018 | FR6: 2018 | FS6: 2018 | FT6: 2018 | FU6: 2018 | FV6: 2018 | FW6: 2018 | FX6: 2018 | FY6: 2018 | FZ6: 2018 | GA6: 2018 | GB6: 2018 | GC6: 2018 | GD6: 2018 | GE6: 2018 | GF6: 2018 | GG6: 2018 | GH6: 2018 | GI6: 2018 | GJ6: 2018 | GK6: 2018 | GL6: 2018 | GM6: 2018 | GN6: 2018 | GO6: 2018 | GP6: 2018 | GQ6: 2018 | GR6: 2018 | GS6: 2018 | GT6: 2018 | GU6: 2018 | GV6: 2018 | GW6: 2018 | GX6: 2018 | GY6: 2018 | GZ6: 2018 | HA6: 2018 | HB6: 2018 | HC6: 2018 | HD6: 2018 | HE6: 2018 | HF6: 2018 | HG6: 2018 | HH6: 2018 | HI6: 2018 | HJ6: 2018 | HK6: 2018 | HL6: 2018 | HM6: 2018 | HN6: 2018 | HO6: 2018 | HP6: 2018 | HQ6: 2018 | HR6: 2018 | HS6: 2018 | HT6: 2018 | HU6: 2018 | HV6: 2018 | HW6: 2018 | HX6: 2018 | HY6: 2018 | HZ6: 2018 | IA6: 2018 | IB6: 2018 | IC6: 2018 | ID6: 2018 | IE6: 2018 | IF6: 2018 | IG6: 2018 | IH6: 2018 | II6: 2018 | IJ6: 2018 | IK6: 2018 | IL6: 2018 | IM6: 2018 | IN6: 2018 | IO6: 2018 | IP6: 2018 | IQ6: 2018 | IR6: 2018 | IS6: 2018 | IT6: 2018 | IU6: 2018 | IV6: 2018 | IW6: 2018 | IX6: 2018 | IY6: 2018 | IZ6: 2018 | JA6: 2018 | JB6: 2018 | JC6: 2018 | JD6: 2018 | JE6: 2018 | JF6: 2018 | JG6: 2018 | JH6: 2018 | JI6: 2018 | JJ6: 2018 | JK6: 2018 | JL6: 2018 | JM6: 2018 | JN6: 2018 | JO6: 2018 | JP6: 2018 | JQ6: 2018 | JR6: 2018 | JS6: 2018 | JT6: 2018 | JU6: 2018 | JV6: 2018 | JW6: 2018 | JX6: 2018 | JY6: 2018 | JZ6: 2018 | KA6: 2018 | KB6: 2018 | KC6: 2018 | KD6: 2018 | KE6: 2018 | KF6: 2018 | KG6: 2018 | KH6: 2018 | KI6: 2018 | KJ6: 2018 | KK6: 2018 | KL6: 2018 | KM6: 2018 | KN6: 2018 | KO6: 2018 | KP6: 2018 | KQ6: 2018 | KR6: 2018 | KS6: 2018 | KT6: 2018 | KU6: 2018 | KV6: 2018 | KW6: 2018 | KX6: 2018 | KY6: 2018 | KZ6: 2018 | LA6: 2018 | LB6: 2018 | LC6: 2018 | LD6: 2018 | LE6: 2018 | LF6: 2018 | LG6: 2018 | LH6: 2018 | LI6: 2018 | LJ6: 2018 | LK6: 2018 | LL6: 2018 | LM6: 2018 | LN6: 2018 | LO6: 2018 | LP6: 2018 | LQ6: 2018 | LR6: 2018 | LS6: 2018 | LT6: 2018 | LU6: 2018 | LV6: 2018 | LW6: 2018 | LX6: 2018 | LY6: 2018 | LZ6: 2018 | MA6: 2018 | MB6: 2018 | MC6: 2018 | MD6: 2018 | ME6: 2018 | MF6: 2018 | MG6: 2018 | MH6: 2018 | MI6: 2018 | MJ6: 2018 | MK6: 2018 | ML6: 2018 | MM6: 2018 | MN6: 2018 | MO6: 2018 | MP6: 2018 | MQ6: 2018 | MR6: 2018 | MS6: 2018 | MT6: 2018 | MU6: 2018 | MV6: 2018 | MW6: 2018 | MX6: 2018 | MY6: 2018 | MZ6: 2018 | NA6: 2018 | NB6: 2018 | NC6: 2018 | ND6: 2018 | NE6: 2018 | NF6: 2018 | NG6: 2018 | NH6: 2018
G7: прошлый год | H7: 2017-01-02 | I7: 2017-01-03 | J7: 2017-01-04 | K7: 2017-01-05 | L7: 2017-01-06 | M7: 2017-01-07 | N7: 2017-01-08 | O7: 2017-01-09 | P7: 2017-01-10 | Q7: 2017-01-11 | R7: 2017-01-12 | S7: 2017-01-13 | T7: 2017-01-14 | U7: 2017-01-15 | V7: 2017-01-16 | W7: 2017-01-17 | X7: 2017-01-18 | Y7: 2017-01-19 | Z7: 2017-01-20 | AA7: 2017-01-21 | AB7: 2017-01-22 | AC7: 2017-01-23 | AD7: 2017-01-24 | AE7: 2017-01-25 | AF7: 2017-01-26 | AG7: 2017-01-27 | AH7: 2017-01-28 | AI7: 2017-01-29 | AJ7: 2017-01-30 | AK7: 2017-01-31 | AL7: 2017-02-01 | AM7: 2017-02-02 | AN7: 2017-02-03 | AO7: 2017-02-04 | AP7: 2017-02-05 | AQ7: 2017-02-06 | AR7: 2017-02-07 | AS7: 2017-02-08 | AT7: 2017-02-09 | AU7: 2017-02-10 | AV7: 2017-02-11 | AW7: 2017-02-12 | AX7: 2017-02-13 | AY7: 2017-02-14 | AZ7: 2017-02-15 | BA7: 2017-02-16 | BB7: 2017-02-17 | BC7: 2017-02-18 | BD7: 2017-02-19 | BE7: 2017-02-20 | BF7: 2017-02-21 | BG7: 2017-02-22 | BH7: 2017-02-23 | BI7: 2017-02-24 | BJ7: 2017-02-25 | BK7: 2017-02-26 | BL7: 2017-02-27 | BM7: 2017-02-28 | BN7: 2017-03-01 | BO7: 2017-03-02 | BP7: 2017-03-03 | BQ7: 2017-03-04 | BR7: 2017-03-05 | BS7: 2017-03-06 | BT7: 2017-03-07 | BU7: 2017-03-08 | BV7: 2017-03-09 | BW7: 2017-03-10 | BX7: 2017-03-11 | BY7: 2017-03-12 | BZ7: 2017-03-13 | CA7: 2017-03-14 | CB7: 2017-03-15 | CC7: 2017-03-16 | CD7: 2017-03-17 | CE7: 2017-03-18 | CF7: 2017-03-19 | CG7: 2017-03-20 | CH7: 2017-03-21 | CI7: 2017-03-22 | CJ7: 2017-03-23 | CK7: 2017-03-24 | CL7: 2017-03-25 | CM7: 2017-03-26 | CN7: 2017-03-27 | CO7: 2017-03-28 | CP7: 2017-03-29 | CQ7: 2017-03-30 | CR7: 2017-03-31 | CS7: 2017-04-01 | CT7: 2017-04-02 | CU7: 2017-04-03 | CV7: 2017-04-04 | CW7: 2017-04-05 | CX7: 2017-04-06 | CY7: 2017-04-07 | CZ7: 2017-04-08 | DA7: 2017-04-09 | DB7: 2017-04-10 | DC7: 2017-04-11 | DD7: 2017-04-12 | DE7: 2017-04-13 | DF7: 2017-04-14 | DG7: 2017-04-15 | DH7: 2017-04-16 | DI7: 2017-04-17 | DJ7: 2017-04-18 | DK7: 2017-04-19 | DL7: 2017-04-20 | DM7: 2017-04-21 | DN7: 2017-04-22 | DO7: 2017-04-23 | DP7: 2017-04-24 | DQ7: 2017-04-25 | DR7: 2017-04-26 | DS7: 2017-04-27 | DT7: 2017-04-28 | DU7: 2017-04-29 | DV7: 2017-04-30 | DW7: 2017-05-01 | DX7: 2017-05-02 | DY7: 2017-05-03 | DZ7: 2017-05-04 | EA7: 2017-05-05 | EB7: 2017-05-06 | EC7: 2017-05-07 | ED7: 2017-05-08 | EE7: 2017-05-09 | EF7: 2017-05-10 | EG7: 2017-05-11 | EH7: 2017-05-12 | EI7: 2017-05-13 | EJ7: 2017-05-14 | EK7: 2017-05-15 | EL7: 2017-05-16 | EM7: 2017-05-17 | EN7: 2017-05-18 | EO7: 2017-05-19 | EP7: 2017-05-20 | EQ7: 2017-05-21 | ER7: 2017-05-22 | ES7: 2017-05-23 | ET7: 2017-05-24 | EU7: 2017-05-25 | EV7: 2017-05-26 | EW7: 2017-05-27 | EX7: 2017-05-28 | EY7: 2017-05-29 | EZ7: 2017-05-30 | FA7: 2017-05-31 | FB7: 2017-06-01 | FC7: 2017-06-02 | FD7: 2017-06-03 | FE7: 2017-06-04 | FF7: 2017-06-05 | FG7: 2017-06-06 | FH7: 2017-06-07 | FI7: 2017-06-08 | FJ7: 2017-06-09 | FK7: 2017-06-10 | FL7: 2017-06-11 | FM7: 2017-06-12 | FN7: 2017-06-13 | FO7: 2017-06-14 | FP7: 2017-06-15 | FQ7: 2017-06-16 | FR7: 2017-06-17 | FS7: 2017-06-18 | FT7: 2017-06-19 | FU7: 2017-06-20 | FV7: 2017-06-21 | FW7: 2017-06-22 | FX7: 2017-06-23 | FY7: 2017-06-24 | FZ7: 2017-06-25 | GA7: 2017-06-26 | GB7: 2017-06-27 | GC7: 2017-06-28 | GD7: 2017-06-29 | GE7: 2017-06-30 | GF7: 2017-07-01 | GG7: 2017-07-02 | GH7: 2017-07-03 | GI7: 2017-07-04 | GJ7: 2017-07-05 | GK7: 2017-07-06 | GL7: 2017-07-07 | GM7: 2017-07-08 | GN7: 2017-07-09 | GO7: 2017-07-10 | GP7: 2017-07-11 | GQ7: 2017-07-12 | GR7: 2017-07-13 | GS7: 2017-07-14 | GT7: 2017-07-15 | GU7: 2017-07-16 | GV7: 2017-07-17 | GW7: 2017-07-18 | GX7: 2017-07-19 | GY7: 2017-07-20 | GZ7: 2017-07-21 | HA7: 2017-07-22 | HB7: 2017-07-23 | HC7: 2017-07-24 | HD7: 2017-07-25 | HE7: 2017-07-26 | HF7: 2017-07-27 | HG7: 2017-07-28 | HH7: 2017-07-29 | HI7: 2017-07-30 | HJ7: 2017-07-31 | HK7: 2017-08-01 | HL7: 2017-08-02 | HM7: 2017-08-03 | HN7: 2017-08-04 | HO7: 2017-08-05 | HP7: 2017-08-06 | HQ7: 2017-08-07 | HR7: 2017-08-08 | HS7: 2017-08-09 | HT7: 2017-08-10 | HU7: 2017-08-11 | HV7: 2017-08-12 | HW7: 2017-08-13 | HX7: 2017-08-14 | HY7: 2017-08-15 | HZ7: 2017-08-16 | IA7: 2017-08-17 | IB7: 2017-08-18 | IC7: 2017-08-19 | ID7: 2017-08-20 | IE7: 2017-08-21 | IF7: 2017-08-22 | IG7: 2017-08-23 | IH7: 2017-08-24 | II7: 2017-08-25 | IJ7: 2017-08-26 | IK7: 2017-08-27 | IL7: 2017-08-28 | IM7: 2017-08-29 | IN7: 2017-08-30 | IO7: 2017-08-31 | IP7: 2017-09-01 | IQ7: 2017-09-02 | IR7: 2017-09-03 | IS7: 2017-09-04 | IT7: 2017-09-05 | IU7: 2017-09-06 | IV7: 2017-09-07 | IW7: 2017-09-08 | IX7: 2017-09-09 | IY7: 2017-09-10 | IZ7: 2017-09-11 | JA7: 2017-09-12 | JB7: 2017-09-13 | JC7: 2017-09-14 | JD7: 2017-09-15 | JE7: 2017-09-16 | JF7: 2017-09-17 | JG7: 2017-09-18 | JH7: 2017-09-19 | JI7: 2017-09-20 | JJ7: 2017-09-21 | JK7: 2017-09-22 | JL7: 2017-09-23 | JM7: 2017-09-24 | JN7: 2017-09-25 | JO7: 2017-09-26 | JP7: 2017-09-27 | JQ7: 2017-09-28 | JR7: 2017-09-29 | JS7: 2017-09-30 | JT7: 2017-10-01 | JU7: 2017-10-02 | JV7: 2017-10-03 | JW7: 2017-10-04 | JX7: 2017-10-05 | JY7: 2017-10-06 | JZ7: 2017-10-07 | KA7: 2017-10-08 | KB7: 2017-10-09 | KC7: 2017-10-10 | KD7: 2017-10-11 | KE7: 2017-10-12 | KF7: 2017-10-13 | KG7: 2017-10-14 | KH7: 2017-10-15 | KI7: 2017-10-16 | KJ7: 2017-10-17 | KK7: 2017-10-18 | KL7: 2017-10-19 | KM7: 2017-10-20 | KN7: 2017-10-21 | KO7: 2017-10-22 | KP7: 2017-10-23 | KQ7: 2017-10-24 | KR7: 2017-10-25 | KS7: 2017-10-26 | KT7: 2017-10-27 | KU7: 2017-10-28 | KV7: 2017-10-29 | KW7: 2017-10-30 | KX7: 2017-10-31 | KY7: 2017-11-01 | KZ7: 2017-11-02 | LA7: 2017-11-03 | LB7: 2017-11-04 | LC7: 2017-11-05 | LD7: 2017-11-06 | LE7: 2017-11-07 | LF7: 2017-11-08 | LG7: 2017-11-09 | LH7: 2017-11-10 | LI7: 2017-11-11 | LJ7: 2017-11-12 | LK7: 2017-11-13 | LL7: 2017-11-14 | LM7: 2017-11-15 | LN7: 2017-11-16 | LO7: 2017-11-17 | LP7: 2017-11-18 | LQ7: 2017-11-19 | LR7: 2017-11-20 | LS7: 2017-11-21 | LT7: 2017-11-22 | LU7: 2017-11-23 | LV7: 2017-11-24 | LW7: 2017-11-25 | LX7: 2017-11-26 | LY7: 2017-11-27 | LZ7: 2017-11-28 | MA7: 2017-11-29 | MB7: 2017-11-30 | MC7: 2017-12-01 | MD7: 2017-12-02 | ME7: 2017-12-03 | MF7: 2017-12-04 | MG7: 2017-12-05 | MH7: 2017-12-06 | MI7: 2017-12-07 | MJ7: 2017-12-08 | MK7: 2017-12-09 | ML7: 2017-12-10 | MM7: 2017-12-11 | MN7: 2017-12-12 | MO7: 2017-12-13 | MP7: 2017-12-14 | MQ7: 2017-12-15 | MR7: 2017-12-16 | MS7: 2017-12-17 | MT7: 2017-12-18 | MU7: 2017-12-19 | MV7: 2017-12-20 | MW7: 2017-12-21 | MX7: 2017-12-22 | MY7: 2017-12-23 | MZ7: 2017-12-24 | NA7: 2017-12-25 | NB7: 2017-12-26 | NC7: 2017-12-27 | ND7: 2017-12-28 | NE7: 2017-12-29 | NF7: 2017-12-30 | NG7: 2017-12-31 | NH7: 2018-01-01
G8: номер недели | H8: 2 | I8: 2 | J8: 2 | K8: 2 | L8: 2 | M8: 2 | N8: 2 | O8: 3 | P8: 3 | Q8: 3 | R8: 3 | S8: 3 | T8: 3 | U8: 3 | V8: 4 | W8: 4 | X8: 4 | Y8: 4 | Z8: 4 | AA8: 4 | AB8: 4 | AC8: 5 | AD8: 5 | AE8: 5 | AF8: 5 | AG8: 5 | AH8: 5 | AI8: 5 | AJ8: 6 | AK8: 6 | AL8: 6 | AM8: 6 | AN8: 6 | AO8: 6 | AP8: 6 | AQ8: 7 | AR8: 7 | AS8: 7 | AT8: 7 | AU8: 7 | AV8: 7 | AW8: 7 | AX8: 8 | AY8: 8 | AZ8: 8 | BA8: 8 | BB8: 8 | BC8: 8 | BD8: 8 | BE8: 9 | BF8: 9 | BG8: 9 | BH8: 9 | BI8: 9 | BJ8: 9 | BK8: 9 | BL8: 10 | BM8: 10 | BN8: 10 | BO8: 10 | BP8: 10 | BQ8: 10 | BR8: 10 | BS8: 11 | BT8: 11 | BU8: 11 | BV8: 11 | BW8: 11 | BX8: 11 | BY8: 11 | BZ8: 12 | CA8: 12 | CB8: 12 | CC8: 12 | CD8: 12 | CE8: 12 | CF8: 12 | CG8: 13 | CH8: 13 | CI8: 13 | CJ8: 13 | CK8: 13 | CL8: 13 | CM8: 13 | CN8: 14 | CO8: 14 | CP8: 14 | CQ8: 14 | CR8: 14 | CS8: 14 | CT8: 14 | CU8: 15 | CV8: 15 | CW8: 15 | CX8: 15 | CY8: 15 | CZ8: 15 | DA8: 15 | DB8: 16 | DC8: 16 | DD8: 16 | DE8: 16 | DF8: 16 | DG8: 16 | DH8: 16 | DI8: 17 | DJ8: 17 | DK8: 17 | DL8: 17 | DM8: 17 | DN8: 17 | DO8: 17 | DP8: 18 | DQ8: 18 | DR8: 18 | DS8: 18 | DT8: 18 | DU8: 18 | DV8: 18 | DW8: 19 | DX8: 19 | DY8: 19 | DZ8: 19 | EA8: 19 | EB8: 19 | EC8: 19 | ED8: 20 | EE8: 20 | EF8: 20 | EG8: 20 | EH8: 20 | EI8: 20 | EJ8: 20 | EK8: 21 | EL8: 21 | EM8: 21 | EN8: 21 | EO8: 21 | EP8: 21 | EQ8: 21 | ER8: 22 | ES8: 22 | ET8: 22 | EU8: 22 | EV8: 22 | EW8: 22 | EX8: 22 | EY8: 23 | EZ8: 23 | FA8: 23 | FB8: 23 | FC8: 23 | FD8: 23 | FE8: 23 | FF8: 24 | FG8: 24 | FH8: 24 | FI8: 24 | FJ8: 24 | FK8: 24 | FL8: 24 | FM8: 25 | FN8: 25 | FO8: 25 | FP8: 25 | FQ8: 25 | FR8: 25 | FS8: 25 | FT8: 26 | FU8: 26 | FV8: 26 | FW8: 26 | FX8: 26 | FY8: 26 | FZ8: 26 | GA8: 27 | GB8: 27 | GC8: 27 | GD8: 27 | GE8: 27 | GF8: 27 | GG8: 27 | GH8: 28 | GI8: 28 | GJ8: 28 | GK8: 28 | GL8: 28 | GM8: 28 | GN8: 28 | GO8: 29 | GP8: 29 | GQ8: 29 | GR8: 29 | GS8: 29 | GT8: 29 | GU8: 29 | GV8: 30 | GW8: 30 | GX8: 30 | GY8: 30 | GZ8: 30 | HA8: 30 | HB8: 30 | HC8: 31 | HD8: 31 | HE8: 31 | HF8: 31 | HG8: 31 | HH8: 31 | HI8: 31 | HJ8: 32 | HK8: 32 | HL8: 32 | HM8: 32 | HN8: 32 | HO8: 32 | HP8: 32 | HQ8: 33 | HR8: 33 | HS8: 33 | HT8: 33 | HU8: 33 | HV8: 33 | HW8: 33 | HX8: 34 | HY8: 34 | HZ8: 34 | IA8: 34 | IB8: 34 | IC8: 34 | ID8: 34 | IE8: 35 | IF8: 35 | IG8: 35 | IH8: 35 | II8: 35 | IJ8: 35 | IK8: 35 | IL8: 36 | IM8: 36 | IN8: 36 | IO8: 36 | IP8: 36 | IQ8: 36 | IR8: 36 | IS8: 37 | IT8: 37 | IU8: 37 | IV8: 37 | IW8: 37 | IX8: 37 | IY8: 37 | IZ8: 38 | JA8: 38 | JB8: 38 | JC8: 38 | JD8: 38 | JE8: 38 | JF8: 38 | JG8: 39 | JH8: 39 | JI8: 39 | JJ8: 39 | JK8: 39 | JL8: 39 | JM8: 39 | JN8: 40 | JO8: 40 | JP8: 40 | JQ8: 40 | JR8: 40 | JS8: 40 | JT8: 40 | JU8: 41 | JV8: 41 | JW8: 41 | JX8: 41 | JY8: 41 | JZ8: 41 | KA8: 41 | KB8: 42 | KC8: 42 | KD8: 42 | KE8: 42 | KF8: 42 | KG8: 42 | KH8: 42 | KI8: 43 | KJ8: 43 | KK8: 43 | KL8: 43 | KM8: 43 | KN8: 43 | KO8: 43 | KP8: 44 | KQ8: 44 | KR8: 44 | KS8: 44 | KT8: 44 | KU8: 44 | KV8: 44 | KW8: 45 | KX8: 45 | KY8: 45 | KZ8: 45 | LA8: 45 | LB8: 45 | LC8: 45 | LD8: 46 | LE8: 46 | LF8: 46 | LG8: 46 | LH8: 46 | LI8: 46 | LJ8: 46 | LK8: 47 | LL8: 47 | LM8: 47 | LN8: 47 | LO8: 47 | LP8: 47 | LQ8: 47 | LR8: 48 | LS8: 48 | LT8: 48 | LU8: 48 | LV8: 48 | LW8: 48 | LX8: 48 | LY8: 49 | LZ8: 49 | MA8: 49 | MB8: 49 | MC8: 49 | MD8: 49 | ME8: 49 | MF8: 50 | MG8: 50 | MH8: 50 | MI8: 50 | MJ8: 50 | MK8: 50 | ML8: 50 | MM8: 51 | MN8: 51 | MO8: 51 | MP8: 51 | MQ8: 51 | MR8: 51 | MS8: 51 | MT8: 52 | MU8: 52 | MV8: 52 | MW8: 52 | MX8: 52 | MY8: 52 | MZ8: 52 | NA8: 53 | NB8: 53 | NC8: 53 | ND8: 53 | NE8: 53 | NF8: 53 | NG8: 53 | NH8: 1
G9: день недели | H9: 1 | I9: 2 | J9: 3 | K9: 4 | L9: 5 | M9: 6 | N9: 7 | O9: 1 | P9: 2 | Q9: 3 | R9: 4 | S9: 5 | T9: 6 | U9: 7 | V9: 1 | W9: 2 | X9: 3 | Y9: 4 | Z9: 5 | AA9: 6 | AB9: 7 | AC9: 1 | AD9: 2 | AE9: 3 | AF9: 4 | AG9: 5 | AH9: 6 | AI9: 7 | AJ9: 1 | AK9: 2 | AL9: 3 | AM9: 4 | AN9: 5 | AO9: 6 | AP9: 7 | AQ9: 1 | AR9: 2 | AS9: 3 | AT9: 4 | AU9: 5 | AV9: 6 | AW9: 7 | AX9: 1 | AY9: 2 | AZ9: 3 | BA9: 4 | BB9: 5 | BC9: 6 | BD9: 7 | BE9: 1 | BF9: 2 | BG9: 3 | BH9: 4 | BI9: 5 | BJ9: 6 | BK9: 7 | BL9: 1 | BM9: 2 | BN9: 3 | BO9: 4 | BP9: 5 | BQ9: 6 | BR9: 7 | BS9: 1 | BT9: 2 | BU9: 3 | BV9: 4 | BW9: 5 | BX9: 6 | BY9: 7 | BZ9: 1 | CA9: 2 | CB9: 3 | CC9: 4 | CD9: 5 | CE9: 6 | CF9: 7 | CG9: 1 | CH9: 2 | CI9: 3 | CJ9: 4 | CK9: 5 | CL9: 6 | CM9: 7 | CN9: 1 | CO9: 2 | CP9: 3 | CQ9: 4 | CR9: 5 | CS9: 6 | CT9: 7 | CU9: 1 | CV9: 2 | CW9: 3 | CX9: 4 | CY9: 5 | CZ9: 6 | DA9: 7 | DB9: 1 | DC9: 2 | DD9: 3 | DE9: 4 | DF9: 5 | DG9: 6 | DH9: 7 | DI9: 1 | DJ9: 2 | DK9: 3 | DL9: 4 | DM9: 5 | DN9: 6 | DO9: 7 | DP9: 1 | DQ9: 2 | DR9: 3 | DS9: 4 | DT9: 5 | DU9: 6 | DV9: 7 | DW9: 1 | DX9: 2 | DY9: 3 | DZ9: 4 | EA9: 5 | EB9: 6 | EC9: 7 | ED9: 1 | EE9: 2 | EF9: 3 | EG9: 4 | EH9: 5 | EI9: 6 | EJ9: 7 | EK9: 1 | EL9: 2 | EM9: 3 | EN9: 4 | EO9: 5 | EP9: 6 | EQ9: 7 | ER9: 1 | ES9: 2 | ET9: 3 | EU9: 4 | EV9: 5 | EW9: 6 | EX9: 7 | EY9: 1 | EZ9: 2 | FA9: 3 | FB9: 4 | FC9: 5 | FD9: 6 | FE9: 7 | FF9: 1 | FG9: 2 | FH9: 3 | FI9: 4 | FJ9: 5 | FK9: 6 | FL9: 7 | FM9: 1 | FN9: 2 | FO9: 3 | FP9: 4 | FQ9: 5 | FR9: 6 | FS9: 7 | FT9: 1 | FU9: 2 | FV9: 3 | FW9: 4 | FX9: 5 | FY9: 6 | FZ9: 7 | GA9: 1 | GB9: 2 | GC9: 3 | GD9: 4 | GE9: 5 | GF9: 6 | GG9: 7 | GH9: 1 | GI9: 2 | GJ9: 3 | GK9: 4 | GL9: 5 | GM9: 6 | GN9: 7 | GO9: 1 | GP9: 2 | GQ9: 3 | GR9: 4 | GS9: 5 | GT9: 6 | GU9: 7 | GV9: 1 | GW9: 2 | GX9: 3 | GY9: 4 | GZ9: 5 | HA9: 6 | HB9: 7 | HC9: 1 | HD9: 2 | HE9: 3 | HF9: 4 | HG9: 5 | HH9: 6 | HI9: 7 | HJ9: 1 | HK9: 2 | HL9: 3 | HM9: 4 | HN9: 5 | HO9: 6 | HP9: 7 | HQ9: 1 | HR9: 2 | HS9: 3 | HT9: 4 | HU9: 5 | HV9: 6 | HW9: 7 | HX9: 1 | HY9: 2 | HZ9: 3 | IA9: 4 | IB9: 5 | IC9: 6 | ID9: 7 | IE9: 1 | IF9: 2 | IG9: 3 | IH9: 4 | II9: 5 | IJ9: 6 | IK9: 7 | IL9: 1 | IM9: 2 | IN9: 3 | IO9: 4 | IP9: 5 | IQ9: 6 | IR9: 7 | IS9: 1 | IT9: 2 | IU9: 3 | IV9: 4 | IW9: 5 | IX9: 6 | IY9: 7 | IZ9: 1 | JA9: 2 | JB9: 3 | JC9: 4 | JD9: 5 | JE9: 6 | JF9: 7 | JG9: 1 | JH9: 2 | JI9: 3 | JJ9: 4 | JK9: 5 | JL9: 6 | JM9: 7 | JN9: 1 | JO9: 2 | JP9: 3 | JQ9: 4 | JR9: 5 | JS9: 6 | JT9: 7 | JU9: 1 | JV9: 2 | JW9: 3 | JX9: 4 | JY9: 5 | JZ9: 6 | KA9: 7 | KB9: 1 | KC9: 2 | KD9: 3 | KE9: 4 | KF9: 5 | KG9: 6 | KH9: 7 | KI9: 1 | KJ9: 2 | KK9: 3 | KL9: 4 | KM9: 5 | KN9: 6 | KO9: 7 | KP9: 1 | KQ9: 2 | KR9: 3 | KS9: 4 | KT9: 5 | KU9: 6 | KV9: 7 | KW9: 1 | KX9: 2 | KY9: 3 | KZ9: 4 | LA9: 5 | LB9: 6 | LC9: 7 | LD9: 1 | LE9: 2 | LF9: 3 | LG9: 4 | LH9: 5 | LI9: 6 | LJ9: 7 | LK9: 1 | LL9: 2 | LM9: 3 | LN9: 4 | LO9: 5 | LP9: 6 | LQ9: 7 | LR9: 1 | LS9: 2 | LT9: 3 | LU9: 4 | LV9: 5 | LW9: 6 | LX9: 7 | LY9: 1 | LZ9: 2 | MA9: 3 | MB9: 4 | MC9: 5 | MD9: 6 | ME9: 7 | MF9: 1 | MG9: 2 | MH9: 3 | MI9: 4 | MJ9: 5 | MK9: 6 | ML9: 7 | MM9: 1 | MN9: 2 | MO9: 3 | MP9: 4 | MQ9: 5 | MR9: 6 | MS9: 7 | MT9: 1 | MU9: 2 | MV9: 3 | MW9: 4 | MX9: 5 | MY9: 6 | MZ9: 7 | NA9: 1 | NB9: 2 | NC9: 3 | ND9: 4 | NE9: 5 | NF9: 6 | NG9: 7 | NH9: 1
G10: месяц | H10: 1 | I10: 1 | J10: 1 | K10: 1 | L10: 1 | M10: 1 | N10: 1 | O10: 1 | P10: 1 | Q10: 1 | R10: 1 | S10: 1 | T10: 1 | U10: 1 | V10: 1 | W10: 1 | X10: 1 | Y10: 1 | Z10: 1 | AA10: 1 | AB10: 1 | AC10: 1 | AD10: 1 | AE10: 1 | AF10: 1 | AG10: 1 | AH10: 1 | AI10: 1 | AJ10: 1 | AK10: 1 | AL10: 2 | AM10: 2 | AN10: 2 | AO10: 2 | AP10: 2 | AQ10: 2 | AR10: 2 | AS10: 2 | AT10: 2 | AU10: 2 | AV10: 2 | AW10: 2 | AX10: 2 | AY10: 2 | AZ10: 2 | BA10: 2 | BB10: 2 | BC10: 2 | BD10: 2 | BE10: 2 | BF10: 2 | BG10: 2 | BH10: 2 | BI10: 2 | BJ10: 2 | BK10: 2 | BL10: 2 | BM10: 2 | BN10: 3 | BO10: 3 | BP10: 3 | BQ10: 3 | BR10: 3 | BS10: 3 | BT10: 3 | BU10: 3 | BV10: 3 | BW10: 3 | BX10: 3 | BY10: 3 | BZ10: 3 | CA10: 3 | CB10: 3 | CC10: 3 | CD10: 3 | CE10: 3 | CF10: 3 | CG10: 3 | CH10: 3 | CI10: 3 | CJ10: 3 | CK10: 3 | CL10: 3 | CM10: 3 | CN10: 3 | CO10: 3 | CP10: 3 | CQ10: 3 | CR10: 3 | CS10: 4 | CT10: 4 | CU10: 4 | CV10: 4 | CW10: 4 | CX10: 4 | CY10: 4 | CZ10: 4 | DA10: 4 | DB10: 4 | DC10: 4 | DD10: 4 | DE10: 4 | DF10: 4 | DG10: 4 | DH10: 4 | DI10: 4 | DJ10: 4 | DK10: 4 | DL10: 4 | DM10: 4 | DN10: 4 | DO10: 4 | DP10: 4 | DQ10: 4 | DR10: 4 | DS10: 4 | DT10: 4 | DU10: 4 | DV10: 4 | DW10: 5 | DX10: 5 | DY10: 5 | DZ10: 5 | EA10: 5 | EB10: 5 | EC10: 5 | ED10: 5 | EE10: 5 | EF10: 5 | EG10: 5 | EH10: 5 | EI10: 5 | EJ10: 5 | EK10: 5 | EL10: 5 | EM10: 5 | EN10: 5 | EO10: 5 | EP10: 5 | EQ10: 5 | ER10: 5 | ES10: 5 | ET10: 5 | EU10: 5 | EV10: 5 | EW10: 5 | EX10: 5 | EY10: 5 | EZ10: 5 | FA10: 5 | FB10: 6 | FC10: 6 | FD10: 6 | FE10: 6 | FF10: 6 | FG10: 6 | FH10: 6 | FI10: 6 | FJ10: 6 | FK10: 6 | FL10: 6 | FM10: 6 | FN10: 6 | FO10: 6 | FP10: 6 | FQ10: 6 | FR10: 6 | FS10: 6 | FT10: 6 | FU10: 6 | FV10: 6 | FW10: 6 | FX10: 6 | FY10: 6 | FZ10: 6 | GA10: 6 | GB10: 6 | GC10: 6 | GD10: 6 | GE10: 6 | GF10: 7 | GG10: 7 | GH10: 7 | GI10: 7 | GJ10: 7 | GK10: 7 | GL10: 7 | GM10: 7 | GN10: 7 | GO10: 7 | GP10: 7 | GQ10: 7 | GR10: 7 | GS10: 7 | GT10: 7 | GU10: 7 | GV10: 7 | GW10: 7 | GX10: 7 | GY10: 7 | GZ10: 7 | HA10: 7 | HB10: 7 | HC10: 7 | HD10: 7 | HE10: 7 | HF10: 7 | HG10: 7 | HH10: 7 | HI10: 7 | HJ10: 7 | HK10: 8 | HL10: 8 | HM10: 8 | HN10: 8 | HO10: 8 | HP10: 8 | HQ10: 8 | HR10: 8 | HS10: 8 | HT10: 8 | HU10: 8 | HV10: 8 | HW10: 8 | HX10: 8 | HY10: 8 | HZ10: 8 | IA10: 8 | IB10: 8 | IC10: 8 | ID10: 8 | IE10: 8 | IF10: 8 | IG10: 8 | IH10: 8 | II10: 8 | IJ10: 8 | IK10: 8 | IL10: 8 | IM10: 8 | IN10: 8 | IO10: 8 | IP10: 9 | IQ10: 9 | IR10: 9 | IS10: 9 | IT10: 9 | IU10: 9 | IV10: 9 | IW10: 9 | IX10: 9 | IY10: 9 | IZ10: 9 | JA10: 9 | JB10: 9 | JC10: 9 | JD10: 9 | JE10: 9 | JF10: 9 | JG10: 9 | JH10: 9 | JI10: 9 | JJ10: 9 | JK10: 9 | JL10: 9 | JM10: 9 | JN10: 9 | JO10: 9 | JP10: 9 | JQ10: 9 | JR10: 9 | JS10: 9 | JT10: 10 | JU10: 10 | JV10: 10 | JW10: 10 | JX10: 10 | JY10: 10 | JZ10: 10 | KA10: 10 | KB10: 10 | KC10: 10 | KD10: 10 | KE10: 10 | KF10: 10 | KG10: 10 | KH10: 10 | KI10: 10 | KJ10: 10 | KK10: 10 | KL10: 10 | KM10: 10 | KN10: 10 | KO10: 10 | KP10: 10 | KQ10: 10 | KR10: 10 | KS10: 10 | KT10: 10 | KU10: 10 | KV10: 10 | KW10: 10 | KX10: 10 | KY10: 11 | KZ10: 11 | LA10: 11 | LB10: 11 | LC10: 11 | LD10: 11 | LE10: 11 | LF10: 11 | LG10: 11 | LH10: 11 | LI10: 11 | LJ10: 11 | LK10: 11 | LL10: 11 | LM10: 11 | LN10: 11 | LO10: 11 | LP10: 11 | LQ10: 11 | LR10: 11 | LS10: 11 | LT10: 11 | LU10: 11 | LV10: 11 | LW10: 11 | LX10: 11 | LY10: 11 | LZ10: 11 | MA10: 11 | MB10: 11 | MC10: 12 | MD10: 12 | ME10: 12 | MF10: 12 | MG10: 12 | MH10: 12 | MI10: 12 | MJ10: 12 | MK10: 12 | ML10: 12 | MM10: 12 | MN10: 12 | MO10: 12 | MP10: 12 | MQ10: 12 | MR10: 12 | MS10: 12 | MT10: 12 | MU10: 12 | MV10: 12 | MW10: 12 | MX10: 12 | MY10: 12 | MZ10: 12 | NA10: 12 | NB10: 12 | NC10: 12 | ND10: 12 | NE10: 12 | NF10: 12 | NG10: 12 | NH10: 1
G11: год | H11: 2017 | I11: 2017 | J11: 2017 | K11: 2017 | L11: 2017 | M11: 2017 | N11: 2017 | O11: 2017 | P11: 2017 | Q11: 2017 | R11: 2017 | S11: 2017 | T11: 2017 | U11: 2017 | V11: 2017 | W11: 2017 | X11: 2017 | Y11: 2017 | Z11: 2017 | AA11: 2017 | AB11: 2017 | AC11: 2017 | AD11: 2017 | AE11: 2017 | AF11: 2017 | AG11: 2017 | AH11: 2017 | AI11: 2017 | AJ11: 2017 | AK11: 2017 | AL11: 2017 | AM11: 2017 | AN11: 2017 | AO11: 2017 | AP11: 2017 | AQ11: 2017 | AR11: 2017 | AS11: 2017 | AT11: 2017 | AU11: 2017 | AV11: 2017 | AW11: 2017 | AX11: 2017 | AY11: 2017 | AZ11: 2017 | BA11: 2017 | BB11: 2017 | BC11: 2017 | BD11: 2017 | BE11: 2017 | BF11: 2017 | BG11: 2017 | BH11: 2017 | BI11: 2017 | BJ11: 2017 | BK11: 2017 | BL11: 2017 | BM11: 2017 | BN11: 2017 | BO11: 2017 | BP11: 2017 | BQ11: 2017 | BR11: 2017 | BS11: 2017 | BT11: 2017 | BU11: 2017 | BV11: 2017 | BW11: 2017 | BX11: 2017 | BY11: 2017 | BZ11: 2017 | CA11: 2017 | CB11: 2017 | CC11: 2017 | CD11: 2017 | CE11: 2017 | CF11: 2017 | CG11: 2017 | CH11: 2017 | CI11: 2017 | CJ11: 2017 | CK11: 2017 | CL11: 2017 | CM11: 2017 | CN11: 2017 | CO11: 2017 | CP11: 2017 | CQ11: 2017 | CR11: 2017 | CS11: 2017 | CT11: 2017 | CU11: 2017 | CV11: 2017 | CW11: 2017 | CX11: 2017 | CY11: 2017 | CZ11: 2017 | DA11: 2017 | DB11: 2017 | DC11: 2017 | DD11: 2017 | DE11: 2017 | DF11: 2017 | DG11: 2017 | DH11: 2017 | DI11: 2017 | DJ11: 2017 | DK11: 2017 | DL11: 2017 | DM11: 2017 | DN11: 2017 | DO11: 2017 | DP11: 2017 | DQ11: 2017 | DR11: 2017 | DS11: 2017 | DT11: 2017 | DU11: 2017 | DV11: 2017 | DW11: 2017 | DX11: 2017 | DY11: 2017 | DZ11: 2017 | EA11: 2017 | EB11: 2017 | EC11: 2017 | ED11: 2017 | EE11: 2017 | EF11: 2017 | EG11: 2017 | EH11: 2017 | EI11: 2017 | EJ11: 2017 | EK11: 2017 | EL11: 2017 | EM11: 2017 | EN11: 2017 | EO11: 2017 | EP11: 2017 | EQ11: 2017 | ER11: 2017 | ES11: 2017 | ET11: 2017 | EU11: 2017 | EV11: 2017 | EW11: 2017 | EX11: 2017 | EY11: 2017 | EZ11: 2017 | FA11: 2017 | FB11: 2017 | FC11: 2017 | FD11: 2017 | FE11: 2017 | FF11: 2017 | FG11: 2017 | FH11: 2017 | FI11: 2017 | FJ11: 2017 | FK11: 2017 | FL11: 2017 | FM11: 2017 | FN11: 2017 | FO11: 2017 | FP11: 2017 | FQ11: 2017 | FR11: 2017 | FS11: 2017 | FT11: 2017 | FU11: 2017 | FV11: 2017 | FW11: 2017 | FX11: 2017 | FY11: 2017 | FZ11: 2017 | GA11: 2017 | GB11: 2017 | GC11: 2017 | GD11: 2017 | GE11: 2017 | GF11: 2017 | GG11: 2017 | GH11: 2017 | GI11: 2017 | GJ11: 2017 | GK11: 2017 | GL11: 2017 | GM11: 2017 | GN11: 2017 | GO11: 2017 | GP11: 2017 | GQ11: 2017 | GR11: 2017 | GS11: 2017 | GT11: 2017 | GU11: 2017 | GV11: 2017 | GW11: 2017 | GX11: 2017 | GY11: 2017 | GZ11: 2017 | HA11: 2017 | HB11: 2017 | HC11: 2017 | HD11: 2017 | HE11: 2017 | HF11: 2017 | HG11: 2017 | HH11: 2017 | HI11: 2017 | HJ11: 2017 | HK11: 2017 | HL11: 2017 | HM11: 2017 | HN11: 2017 | HO11: 2017 | HP11: 2017 | HQ11: 2017 | HR11: 2017 | HS11: 2017 | HT11: 2017 | HU11: 2017 | HV11: 2017 | HW11: 2017 | HX11: 2017 | HY11: 2017 | HZ11: 2017 | IA11: 2017 | IB11: 2017 | IC11: 2017 | ID11: 2017 | IE11: 2017 | IF11: 2017 | IG11: 2017 | IH11: 2017 | II11: 2017 | IJ11: 2017 | IK11: 2017 | IL11: 2017 | IM11: 2017 | IN11: 2017 | IO11: 2017 | IP11: 2017 | IQ11: 2017 | IR11: 2017 | IS11: 2017 | IT11: 2017 | IU11: 2017 | IV11: 2017 | IW11: 2017 | IX11: 2017 | IY11: 2017 | IZ11: 2017 | JA11: 2017 | JB11: 2017 | JC11: 2017 | JD11: 2017 | JE11: 2017 | JF11: 2017 | JG11: 2017 | JH11: 2017 | JI11: 2017 | JJ11: 2017 | JK11: 2017 | JL11: 2017 | JM11: 2017 | JN11: 2017 | JO11: 2017 | JP11: 2017 | JQ11: 2017 | JR11: 2017 | JS11: 2017 | JT11: 2017 | JU11: 2017 | JV11: 2017 | JW11: 2017 | JX11: 2017 | JY11: 2017 | JZ11: 2017 | KA11: 2017 | KB11: 2017 | KC11: 2017 | KD11: 2017 | KE11: 2017 | KF11: 2017 | KG11: 2017 | KH11: 2017 | KI11: 2017 | KJ11: 2017 | KK11: 2017 | KL11: 2017 | KM11: 2017 | KN11: 2017 | KO11: 2017 | KP11: 2017 | KQ11: 2017 | KR11: 2017 | KS11: 2017 | KT11: 2017 | KU11: 2017 | KV11: 2017 | KW11: 2017 | KX11: 2017 | KY11: 2017 | KZ11: 2017 | LA11: 2017 | LB11: 2017 | LC11: 2017 | LD11: 2017 | LE11: 2017 | LF11: 2017 | LG11: 2017 | LH11: 2017 | LI11: 2017 | LJ11: 2017 | LK11: 2017 | LL11: 2017 | LM11: 2017 | LN11: 2017 | LO11: 2017 | LP11: 2017 | LQ11: 2017 | LR11: 2017 | LS11: 2017 | LT11: 2017 | LU11: 2017 | LV11: 2017 | LW11: 2017 | LX11: 2017 | LY11: 2017 | LZ11: 2017 | MA11: 2017 | MB11: 2017 | MC11: 2017 | MD11: 2017 | ME11: 2017 | MF11: 2017 | MG11: 2017 | MH11: 2017 | MI11: 2017 | MJ11: 2017 | MK11: 2017 | ML11: 2017 | MM11: 2017 | MN11: 2017 | MO11: 2017 | MP11: 2017 | MQ11: 2017 | MR11: 2017 | MS11: 2017 | MT11: 2017 | MU11: 2017 | MV11: 2017 | MW11: 2017 | MX11: 2017 | MY11: 2017 | MZ11: 2017 | NA11: 2017 | NB11: 2017 | NC11: 2017 | ND11: 2017 | NE11: 2017 | NF11: 2017 | NG11: 2017 | NH11: 2018
A13: ИТОГО | C13: =SMALL($C$22:$C$3484,2) -> 2012-08-05 | D13: 2018 | E13: Итого | F13: руб. | G13: =D13&"-"&E13&"-"&F13 -> 2018-Итого-руб. | H13: =SUMIFS(H$22:H$3484,$D$22:$D$3484,$D13,$E$22:$E$3484,$E13,$F$22:$F$3484,$F13) -> 42984 | I13: 636476 | NH13: =SUMIFS(NH$22:NH$3484,$D$22:$D$3484,$D13,$E$22:$E$3484,$E13,$F$22:$F$3484,$F13) -> 5208 | NJ13: =SUMIF($H$3:$NH$3,NJ$3,$H13:$NH13) -> 679460 | NK13: 0 | PL13: =SUMIF($H$5:$NH$5,PL$5,$H13:$NH13) -> 679460 | PM13: 0 | QA13: * | QB13: * | QC13: * | QD13: * | QE13: * | QF13: * | QH13: 2017-02-24
A14: ИТОГО | C14: =SMALL($C$22:$C$3484,2) -> 2012-08-05 | D14: 2018 | E14: Розница | F14: руб. | G14: =D14&"-"&E14&"-"&F14 -> 2018-Розница-руб. | H14: 36484 | I14: 625476 | NH14: 4836 | NJ14: =SUMIF($H$3:$NH$3,NJ$3,$H14:$NH14) -> 661960 | NK14: 0 | PL14: =SUMIF($H$5:$NH$5,PL$5,$H14:$NH14) -> 661960 | PM14: 0 | PY14: # | QH14: 2017-05-08
A15: ИТОГО | C15: =SMALL($C$22:$C$3484,2) -> 2012-08-05 | D15: 2018 | E15: Интернет-магазин | F15: руб. | G15: 2018-Интернет-магазин-руб. | H15: 6500 | I15: 11000 | NH15: 372 | NJ15: =SUMIF($H$3:$NH$3,NJ$3,$H15:$NH15) -> 17500 | NK15: 0 | PL15: =SUMIF($H$5:$NH$5,PL$5,$H15:$NH15) -> 17500 | PM15: 0 | QH15: 2017-11-06
A16: ИТОГО | C16: =SMALL($C$22:$C$3484,2) -> 2012-08-05 | D16: 2017 | E16: Итого | F16: руб. | G16: 2017-Итого-руб. | H16: 15724557 | I16: 13424987 | NH16: 0 | NJ16: 2510695 | NK16: =SUMIF($H$8:$NH$8,NK$3,$H16:$NH16) -> 29149544 | PL16: 294656350.3 | PM16: =SUMIF($H$10:$NH$10,PM$5,$H16:$NH16) -> 0 | QH16: 2018-06-12
A17: ИТОГО | C17: =SMALL($C$22:$C$3484,2) -> 2012-08-05 | D17: 2017 | E17: Розница | F17: руб. | G17: 2017-Розница-руб. | H17: 13466949 | I17: 11265452 | NH17: 0 | NJ17: 2347154 | NK17: =SUMIF($H$8:$NH$8,NK$3,$H17:$NH17) -> 24732401 | PL17: 211294656.7 | PM17: =SUMIF($H$10:$NH$10,PM$5,$H17:$NH17) -> 0 | PY17: ?
A18: ИТОГО | C18: 2013-01-01 | D18: 2017 | E18: Интернет-магазин | F18: руб. | G18: =D18&"-"&E18&"-"&F18 -> 2017-Интернет-магазин-руб. | H18: 0 | I18: 0 | NH18: 0 | NJ18: =SUMIF($H$3:$NH$3,NJ$3,$H18:$NH18) -> 0 | NK18: 0 | PL18: =SUMIF($H$5:$NH$5,PL$5,$H18:$NH18) -> 0 | PM18: 0
A19: ИТОГО | C19: =SMALL($C$22:$C$3484,2) -> 2012-08-05 | D19: 2018/2017 | E19: Итого | F19: руб. | G19: 2018/2017-Итого-руб. | H19: =IF(H16=0,0,H13/H16) -> 0.002733558726 | I19: 0.04740980382 | NH19: =IF(NH16=0,0,NH13/NH16) -> 0 | NJ19: =IF(NJ16=0,0,NJ13/NJ16)*IF(VALUE(RIGHT($A$1,10))<VALUE(RIGHT(NJ$2,8)),7/WEEKDAY(RIGHT($A$1,10),2),1) -> 0.947191913 | NK19: =IF(NK16=0,0,NK13/NK16)*IF(VALUE(RIGHT($A$1,10))<VALUE(RIGHT(NK$2,8)),7/WEEKDAY(RIGHT($A$1,10),2),1) -> 0 | PL19: =IF(PL16=0,0,PL13/PL16)*IF(VALUE(RIGHT($A$1,10))<EOMONTH(PL$2,0),DAY(EOMONTH(PL$2,0))/DAY(VALUE(RIGHT($A$1,10))),1) -> 0.03574207713 | PM19: =IF(PM16=0,0,PM13/PM16)*IF(VALUE(RIGHT($A$1,10))<EOMONTH(PM$2,0),DAY(EOMONTH(PM$2,0))/DAY(VALUE(RIGHT($A$1,10))),1) -> 0
A20: ИТОГО | C20: =SMALL($C$22:$C$3484,2) -> 2012-08-05 | D20: 2018/2017 | E20: Розница | F20: руб. | G20: 2018/2017-Розница-руб. | H20: 0.002709151122 | I20: 0.05552160712 | NH20: =IF(NH17=0,0,NH14/NH17) -> 0 | NJ20: =IF(NJ17=0,0,NJ14/NJ17)*IF(VALUE(RIGHT($A$1,10))<VALUE(RIGHT(NJ$2,8)),7/WEEKDAY(RIGHT($A$1,10),2),1) -> 0.9870933053 | NK20: =IF(NK17=0,0,NK14/NK17)*IF(VALUE(RIGHT($A$1,10))<VALUE(RIGHT(NK$2,8)),7/WEEKDAY(RIGHT($A$1,10),2),1) -> 0 | PL20: =IF(PL17=0,0,PL14/PL17)*IF(VALUE(RIGHT($A$1,10))<EOMONTH(PL$2,0),DAY(EOMONTH(PL$2,0))/DAY(VALUE(RIGHT($A$1,10))),1) -> 0.04855958101 | PM20: =IF(PM17=0,0,PM14/PM17)*IF(VALUE(RIGHT($A$1,10))<EOMONTH(PM$2,0),DAY(EOMONTH(PM$2,0))/DAY(VALUE(RIGHT($A$1,10))),1) -> 0 | PY20: №
A21: ИТОГО | C21: 2013-01-01 | D21: 2018/2017 | E21: Интернет-магазин | F21: руб. | G21: =D21&"-"&E21&"-"&F21 -> 2018/2017-Интернет-магазин-руб. | H21: 0 | I21: 0 | NH21: =IF(NH18=0,0,NH15/NH18) -> 0 | NJ21: =SUMIF($H$3:$NH$3,NJ$3,$H21:$NH21) -> 0 | NK21: 0 | PL21: =SUMIF($H$5:$NH$5,PL$5,$H21:$NH21) -> 0 | PM21: 0
A22: Санкт-Петербург | B22: =INDEX('Адреса объектов'!$H$13:$I$143,MATCH(ИТОГ!$A22,'Адреса объектов'!$I$13:$I$25,0),1) -> СЗФО | C22: =MIN(IF(('Адреса объектов'!$I$13:$I$299=$A22)*('Адреса объектов'!$L$13:$L$299>0),'Адреса объектов'!$L$13:$L$299,"")) -> 2012-08-05 | D22: =YEAR($H$2) -> 2018 | E22: Итого | F22: руб. | G22: 2018-Итого-руб. | H22: =SUM(H23,H24) -> 25628 | I22: =SUM(I23,I24) -> 229192 | NH22: =SUM(NH23,NH24) -> 5208 | NJ22: =SUMIF($H$3:$NH$3,NJ$3,$H22:$NH22) -> 254820 | NK22: 0 | PL22: =SUMIF($H$5:$NH$5,PL$5,$H22:$NH22) -> 254820 | PM22: 0 | QA22: * | QB22: * | QC22: * | QD22: * | QE22: * | QF22: *
A23: =A22 -> Санкт-Петербург | B23: СЗФО | C23: 2012-08-05 | D23: 2018 | E23: Розница | F23: руб. | G23: 2018-Розница-руб. | H23: 25128 | I23: 228492 | NH23: =COLUMN(NH$2)*13 -> 4836 | NJ23: =SUMIF($H$3:$NH$3,NJ$3,$H23:$NH23) -> 253620 | NK23: 0 | PL23: =SUMIF($H$5:$NH$5,PL$5,$H23:$NH23) -> 253620 | PM23: 0 | PY23: #
A24: Санкт-Петербург | B24: СЗФО | C24: 2012-08-05 | D24: 2018 | E24: Интернет-магазин | F24: руб. | G24: =D24&"-"&E24&"-"&F24 -> 2018-Интернет-магазин-руб. | H24: 500 | I24: 700 | NH24: =COLUMN(NH$2) -> 372 | NJ24: =SUMIF($H$3:$NH$3,NJ$3,$H24:$NH24) -> 1200 | NK24: 0 | PL24: =SUMIF($H$5:$NH$5,PL$5,$H24:$NH24) -> 1200 | PM24: 0
A25: =A24 -> Санкт-Петербург | B25: =B24 -> СЗФО | C25: =C24 -> 2012-08-05 | D25: =D22-1 -> 2017 | E25: Итого | F25: руб. | G25: 2017-Итого-руб. | H25: 3731846 | I25: 3345138 | NH25: 0 | NJ25: 211395 | NK25: =SUMIF($H$8:$NH$8,NK$3,$H25:$NH25) -> 7076984 | PL25: 86938328.51 | PM25: =SUMIF($H$10:$NH$10,PM$5,$H25:$NH25) -> 0
A26: Санкт-Петербург | B26: СЗФО | C26: 2012-08-05 | D26: =D25 -> 2017 | E26: Розница | F26: руб. | G26: 2017-Розница-руб. | H26: 298908 | I26: 208457 | NH26: 0 | NJ26: 158879 | NK26: =SUMIF($H$8:$NH$8,NK$3,$H26:$NH26) -> 507365 | PL26: 52110740.97 | PM26: =SUMIF($H$10:$NH$10,PM$5,$H26:$NH26) -> 0 | PY26: ?
A27: Санкт-Петербург | B27: СЗФО | C27: 2012-08-05 | D27: =D26 -> 2017 | E27: Интернет-магазин | F27: руб. | G27: =D27&"-"&E27&"-"&F27 -> 2017-Интернет-магазин-руб. | H27: 0 | I27: 0 | NH27: 0 | NJ27: =SUMIF($H$3:$NH$3,NJ$3,$H27:$NH27) -> 0 | NK27: 0 | PL27: =SUMIF($H$5:$NH$5,PL$5,$H27:$NH27) -> 0 | PM27: 0
A28: Санкт-Петербург | B28: СЗФО | C28: 2012-08-05 | D28: =D22&"/"&D25 -> 2018/2017 | E28: Итого | F28: руб. | G28: 2018/2017-Итого-руб. | H28: =IF(H25=0,0,H22/H25) -> 0.006867378772 | I28: 0.06851496112 | NH28: =IF(NH25=0,0,NH22/NH25) -> 0 | NJ28: =IF(NJ25=0,0,NJ22/NJ25)*IF(VALUE(RIGHT($A$1,10))<VALUE(RIGHT(NJ$2,8)),7/WEEKDAY(RIGHT($A$1,10),2),1) -> 4.218973959 | NK28: =IF(NK25=0,0,NK22/NK25)*IF(VALUE(RIGHT($A$1,10))<VALUE(RIGHT(NK$2,8)),7/WEEKDAY(RIGHT($A$1,10),2),1) -> 0 | PL28: =IF(PL25=0,0,PL22/PL25)*IF(VALUE(RIGHT($A$1,10))<EOMONTH(PL$2,0),DAY(EOMONTH(PL$2,0))/DAY(VALUE(RIGHT($A$1,10))),1) -> 0.04543117021 | PM28: =IF(PM25=0,0,PM22/PM25)*IF(VALUE(RIGHT($A$1,10))<EOMONTH(PM$2,0),DAY(EOMONTH(PM$2,0))/DAY(VALUE(RIGHT($A$1,10))),1) -> 0
A29: Санкт-Петербург | B29: СЗФО | C29: 2012-08-05 | D29: 2018/2017 | E29: Розница | F29: руб. | G29: 2018/2017-Розница-руб. | H29: 0.08406600024 | I29: 1.096110949 | NH29: =IF(NH26=0,0,NH23/NH26) -> 0 | NJ29: =IF(NJ26=0,0,NJ23/NJ26)*IF(VALUE(RIGHT($A$1,10))<VALUE(RIGHT(NJ$2,8)),7/WEEKDAY(RIGHT($A$1,10),2),1) -> 5.587081993 | NK29: =IF(NK26=0,0,NK23/NK26)*IF(VALUE(RIGHT($A$1,10))<VALUE(RIGHT(NK$2,8)),7/WEEKDAY(RIGHT($A$1,10),2),1) -> 0 | PL29: =IF(PL26=0,0,PL23/PL26)*IF(VALUE(RIGHT($A$1,10))<EOMONTH(PL$2,0),DAY(EOMONTH(PL$2,0))/DAY(VALUE(RIGHT($A$1,10))),1) -> 0.07543761472 | PM29: =IF(PM26=0,0,PM23/PM26)*IF(VALUE(RIGHT($A$1,10))<EOMONTH(PM$2,0),DAY(EOMONTH(PM$2,0))/DAY(VALUE(RIGHT($A$1,10))),1) -> 0 | PY29: №
A30: Санкт-Петербург | B30: СЗФО | C30: 2012-08-05 | D30: =D29 -> 2018/2017 | E30: Интернет-магазин | F30: руб. | G30: =D30&"-"&E30&"-"&F30 -> 2018/2017-Интернет-магазин-руб. | H30: 0 | I30: 0 | NH30: =IF(NH27=0,0,NH24/NH27) -> 0 | NJ30: =SUMIF($H$3:$NH$3,NJ$3,$H30:$NH30) -> 0 | NK30: 0 | PL30: =SUMIF($H$5:$NH$5,PL$5,$H30:$NH30) -> 0 | PM30: 0
A31: Казань | B31: =INDEX('Адреса объектов'!$H$13:$I$143,MATCH(ИТОГ!$A31,'Адреса объектов'!$I$13:$I$25,0),1) -> ПФО | C31: =MIN(IF(('Адреса объектов'!$I$13:$I$299=$A31)*('Адреса объектов'!$L$13:$L$299>0),'Адреса объектов'!$L$13:$L$299,"")) -> 2013-04-11 | D31: =YEAR($H$2) -> 2018 | E31: Итого | F31: руб. | G31: 2018-Итого-руб. | H31: =SUM(H32,H33) -> 8228 | I31: =SUM(I32,I33) -> 196492 | NJ31: =SUMIF($H$3:$NH$3,NJ$3,$H31:$NH31) -> 204720 | NK31: 0 | PL31: =SUMIF($H$5:$NH$5,PL$5,$H31:$NH31) -> 204720 | PM31: 0 | QA31: * | QB31: * | QC31: * | QD31: * | QE31: * | QF31: *
A32: =A31 -> Казань | B32: =B31 -> ПФО | C32: =C31 -> 2013-04-11 | D32: =D31 -> 2018 | E32: Розница | F32: руб. | G32: 2018-Розница-руб. | H32: 5128 | I32: 188492 | NJ32: =SUMIF($H$3:$NH$3,NJ$3,$H32:$NH32) -> 193620 | NK32: 0 | PL32: =SUMIF($H$5:$NH$5,PL$5,$H32:$NH32) -> 193620 | PM32: 0 | PY32: #
A33: =A32 -> Казань | B33: =B32 -> ПФО | C33: =C32 -> 2013-04-11 | D33: =D32 -> 2018 | E33: Интернет-магазин | F33: руб. | G33: 2018-Интернет-магазин-руб. | H33: 3100 | I33: 8000 | NJ33: =SUMIF($H$3:$NH$3,NJ$3,$H33:$NH33) -> 11100 | NK33: 0 | PL33: =SUMIF($H$5:$NH$5,PL$5,$H33:$NH33) -> 11100 | PM33: 0
A34: Казань | B34: ПФО | C34: 2013-04-11 | D34: =D31-1 -> 2017 | E34: Итого | F34: руб. | G34: 2017-Итого-руб. | H34: 3731846 | I34: 3345138 | NJ34: 211395 | NK34: =SUMIF($H$8:$NH$8,NK$3,$H34:$NH34) -> 7076984 | PL34: 86938328.51 | PM34: =SUMIF($H$10:$NH$10,PM$5,$H34:$NH34) -> 0
A35: Казань | B35: ПФО | C35: 2013-04-11 | D35: =D34 -> 2017 | E35: Розница | F35: руб. | G35: 2017-Розница-руб. | H35: 2989083 | I35: 2584572 | NJ35: 158879 | NK35: =SUMIF($H$8:$NH$8,NK$3,$H35:$NH35) -> 5573655 | PL35: 52110740.97 | PM35: =SUMIF($H$10:$NH$10,PM$5,$H35:$NH35) -> 0 | PY35: ?
A36: Казань | B36: ПФО | C36: 2013-04-11 | D36: =D35 -> 2017 | E36: Интернет-магазин | F36: руб. | G36: 2017-Интернет-магазин-руб. | H36: 0 | I36: 0 | NJ36: =SUMIF($H$3:$NH$3,NJ$3,$H36:$NH36) -> 0 | NK36: 0 | PL36: =SUMIF($H$5:$NH$5,PL$5,$H36:$NH36) -> 0 | PM36: 0
A37: Казань | B37: ПФО | C37: 2013-04-11 | D37: =D31&"/"&D34 -> 2018/2017 | E37: Итого | F37: руб. | G37: 2018/2017-Итого-руб. | H37: =IF(H34=0,0,H31/H34) -> 0.002204806951 | I37: 0.05873957965 | NJ37: =IF(NJ34=0,0,NJ31/NJ34)*IF(VALUE(RIGHT($A$1,10))<VALUE(RIGHT(NJ$2,8)),7/WEEKDAY(RIGHT($A$1,10),2),1) -> 3.389484141 | NK37: =IF(NK34=0,0,NK31/NK34)*IF(VALUE(RIGHT($A$1,10))<VALUE(RIGHT(NK$2,8)),7/WEEKDAY(RIGHT($A$1,10),2),1) -> 0 | PL37: =IF(PL34=0,0,PL31/PL34)*IF(VALUE(RIGHT($A$1,10))<EOMONTH(PL$2,0),DAY(EOMONTH(PL$2,0))/DAY(VALUE(RIGHT($A$1,10))),1) -> 0.03649897639 | PM37: =IF(PM34=0,0,PM31/PM34)*IF(VALUE(RIGHT($A$1,10))<EOMONTH(PM$2,0),DAY(EOMONTH(PM$2,0))/DAY(VALUE(RIGHT($A$1,10))),1) -> 0
A38: Казань | B38: ПФО | C38: 2013-04-11 | D38: =D37 -> 2018/2017 | E38: Розница | F38: руб. | G38: 2018/2017-Розница-руб. | H38: 0.001715576316 | I38: 0.07292967656 | NJ38: =IF(NJ35=0,0,NJ32/NJ35)*IF(VALUE(RIGHT($A$1,10))<VALUE(RIGHT(NJ$2,8)),7/WEEKDAY(RIGHT($A$1,10),2),1) -> 4.265321408 | NK38: =IF(NK35=0,0,NK32/NK35)*IF(VALUE(RIGHT($A$1,10))<VALUE(RIGHT(NK$2,8)),7/WEEKDAY(RIGHT($A$1,10),2),1) -> 0 | PL38: =IF(PL35=0,0,PL32/PL35)*IF(VALUE(RIGHT($A$1,10))<EOMONTH(PL$2,0),DAY(EOMONTH(PL$2,0))/DAY(VALUE(RIGHT($A$1,10))),1) -> 0.05759100608 | PM38: =IF(PM35=0,0,PM32/PM35)*IF(VALUE(RIGHT($A$1,10))<EOMONTH(PM$2,0),DAY(EOMONTH(PM$2,0))/DAY(VALUE(RIGHT($A$1,10))),1) -> 0 | PY38: №
A39: Казань | B39: ПФО | C39: 2013-04-11 | D39: =D38 -> 2018/2017 | E39: Интернет-магазин | F39: руб. | G39: 2018/2017-Интернет-магазин-руб. | H39: 0 | I39: 0 | NJ39: =SUMIF($H$3:$NH$3,NJ$3,$H39:$NH39) -> 0 | NK39: 0 | PL39: =SUMIF($H$5:$NH$5,PL$5,$H39:$NH39) -> 0 | PM39: 0
A40: Краснодар | B40: =INDEX('Адреса объектов'!$H$13:$I$143,MATCH(ИТОГ!$A40,'Адреса объектов'!$I$13:$I$25,0),1) -> ЮФО | C40: =MIN(IF(('Адреса объектов'!$I$13:$I$299=$A40)*('Адреса объектов'!$L$13:$L$299>0),'Адреса объектов'!$L$13:$L$299,"")) -> 2014-11-28 | D40: =YEAR($H$2) -> 2018 | E40: Итого | F40: руб. | G40: =D40&"-"&E40&"-"&F40 -> 2018-Итого-руб. | H40: =SUM(H41,H42) -> 9128 | I40: =SUM(I41,I42) -> 210792 | NJ40: =SUMIF($H$3:$NH$3,NJ$3,$H40:$NH40) -> 219920 | NK40: 0 | PL40: =SUMIF($H$5:$NH$5,PL$5,$H40:$NH40) -> 219920 | PM40: 0 | QA40: * | QB40: * | QC40: * | QD40: * | QE40: * | QF40: *
A41: =A40 -> Краснодар | B41: =B40 -> ЮФО | C41: =C40 -> 2014-11-28 | D41: =D40 -> 2018 | E41: Розница | F41: руб. | G41: 2018-Розница-руб. | H41: 6228 | I41: 208492 | NJ41: 214720 | NK41: 0 | PL41: 214720 | PM41: 0 | PY41: #
A42: =A41 -> Краснодар | B42: =B41 -> ЮФО | C42: =C41 -> 2014-11-28 | D42: =D41 -> 2018 | E42: Интернет-магазин | F42: руб. | G42: =D42&"-"&E42&"-"&F42 -> 2018-Интернет-магазин-руб. | H42: 2900 | I42: 2300 | NJ42: =SUMIF($H$3:$NH$3,NJ$3,$H42:$NH42) -> 5200 | NK42: 0 | PL42: =SUMIF($H$5:$NH$5,PL$5,$H42:$NH42) -> 5200 | PM42: 0
A43: Краснодар | B43: ЮФО | C43: 2014-11-28 | D43: =D40-1 -> 2017 | E43: Итого | F43: руб. | G43: =D43&"-"&E43&"-"&F43 -> 2017-Итого-руб. | H43: 2731846 | I43: 3345138 | NJ43: 211395 | NK43: =SUMIF($H$8:$NH$8,NK$3,$H43:$NH43) -> 6076984 | PL43: 86938328.51 | PM43: =SUMIF($H$10:$NH$10,PM$5,$H43:$NH43) -> 0
A44: Краснодар | B44: ЮФО | C44: 2014-11-28 | D44: =D43 -> 2017 | E44: Розница | F44: руб. | G44: 2017-Розница-руб. | H44: 3989083 | I44: 2584572 | NJ44: 158879 | NK44: 6573655 | PL44: 52110740.97 | PM44: 0 | PY44: ?
A45: Краснодар | B45: ЮФО | C45: 2014-11-28 | D45: =D44 -> 2017 | E45: Интернет-магазин | F45: руб. | G45: =D45&"-"&E45&"-"&F45 -> 2017-Интернет-магазин-руб. | H45: 0 | I45: 0 | NJ45: =SUMIF($H$3:$NH$3,NJ$3,$H45:$NH45) -> 0 | NK45: 0 | PL45: =SUMIF($H$5:$NH$5,PL$5,$H45:$NH45) -> 0 | PM45: 0
A46: Краснодар | B46: ЮФО | C46: 2014-11-28 | D46: =D40&"/"&D43 -> 2018/2017 | E46: Итого | F46: руб. | G46: 2018/2017-Итого-руб. | H46: =IF(H43=0,0,H40/H43) -> 0.003341330368 | I46: =IF(I43=0,0,I40/I43) -> 0.06301444066 | NJ46: =IF(NJ43=0,0,NJ40/NJ43)*IF(VALUE(RIGHT($A$1,10))<VALUE(RIGHT(NJ$2,8)),7/WEEKDAY(RIGHT($A$1,10),2),1) -> 3.641145722 | NK46: =IF(NK43=0,0,NK40/NK43)*IF(VALUE(RIGHT($A$1,10))<VALUE(RIGHT(NK$2,8)),7/WEEKDAY(RIGHT($A$1,10),2),1) -> 0 | PL46: =IF(PL43=0,0,PL40/PL43)*IF(VALUE(RIGHT($A$1,10))<EOMONTH(PL$2,0),DAY(EOMONTH(PL$2,0))/DAY(VALUE(RIGHT($A$1,10))),1) -> 0.03920894338 | PM46: =IF(PM43=0,0,PM40/PM43)*IF(VALUE(RIGHT($A$1,10))<EOMONTH(PM$2,0),DAY(EOMONTH(PM$2,0))/DAY(VALUE(RIGHT($A$1,10))),1) -> 0
A47: Краснодар | B47: ЮФО | C47: 2014-11-28 | D47: =D46 -> 2018/2017 | E47: Розница | F47: руб. | G47: 2018/2017-Розница-руб. | H47: =IF(H44=0,0,H41/H44) -> 0.001561261072 | I47: =IF(I44=0,0,I41/I44) -> 0.08066790169 | NJ47: =IF(NJ44=0,0,NJ41/NJ44)*IF(VALUE(RIGHT($A$1,10))<VALUE(RIGHT(NJ$2,8)),7/WEEKDAY(RIGHT($A$1,10),2),1) -> 4.730140547 | NK47: =IF(NK44=0,0,NK41/NK44)*IF(VALUE(RIGHT($A$1,10))<VALUE(RIGHT(NK$2,8)),7/WEEKDAY(RIGHT($A$1,10),2),1) -> 0 | PL47: =IF(PL44=0,0,PL41/PL44)*IF(VALUE(RIGHT($A$1,10))<EOMONTH(PL$2,0),DAY(EOMONTH(PL$2,0))/DAY(VALUE(RIGHT($A$1,10))),1) -> 0.06386706345 | PM47: =IF(PM44=0,0,PM41/PM44)*IF(VALUE(RIGHT($A$1,10))<EOMONTH(PM$2,0),DAY(EOMONTH(PM$2,0))/DAY(VALUE(RIGHT($A$1,10))),1) -> 0 | PY47: №
A48: Краснодар | B48: ЮФО | C48: 2014-11-28 | D48: =D47 -> 2018/2017 | E48: Интернет-магазин | F48: руб. | G48: =D48&"-"&E48&"-"&F48 -> 2018/2017-Интернет-магазин-руб. | H48: =IF(H45=0,0,H42/H45) -> 0 | I48: =IF(I45=0,0,I42/I45) -> 0 | NJ48: =SUMIF($H$3:$NH$3,NJ$3,$H48:$NH48) -> 0 | NK48: 0 | PL48: =SUMIF($H$5:$NH$5,PL$5,$H48:$NH48) -> 0 | PM48: 0

Sheet Адреса объектов
A1: Код 1 | B1: Код 2 | C1: Название в отчетах 1 | D1: Название в отчетах 2 | E1: Статус | F1: Склад отгрузки | G1: Способ доставки | H1: Федеральные округа | I1: Регион | J1: Город | K1: АЦ | L1: Дата открытия | M1: Дата закрытия
A2: Склады :
B3: 15 | C3: ? | D3: # | F3: МСК | H3: ЦФО | I3: Москва | L3: 2015-01-01
B4: 8 | C4: ? | D4: # | F4: ЕКБ | H4: УФО | I4: Екатеринбург | L4: 2013-01-01
B5: 5 | C5: ? | D5: # | F5: СПБ | H5: СЗФО | I5: Санкт-Петербург | L5: 2012-01-01
B6: 12 | C6: ? | D6: # | F6: НСК | H6: СФО | I6: Новосибирск | L6: 2013-01-01
B7: 16 | C7: ? | D7: # | F7: КАЗ | H7: ПФО | I7: Казань | L7: 2013-01-01
B8: 14 | C8: ? | D8: # | F8: РНД | H8: ЮФО | I8: Ростов-на-Дону | L8: 2013-01-01
B9: 2 | C9: ? | D9: # | I9: Санкт-Петербург | L9: 2012-01-01 | M9: 2014-01-01
B10: 59 | C10: ? | D10: # | I10: Иркутск | L10: 2013-09-16 | M10: 2015-01-01
B11: 46 | C11: ? | D11: # | I11: Москва | L11: 2015-01-01
A12: Магазины:
A13: 501 | B13: 58 | C13: ? | D13: # | E13: * | F13: НСК | G13: DHL | H13: ДВФО | I13: Иркутск | J13: Иркутск | K13: # | L13: 2014-09-16
A14: 271 | B14: 90 | C14: ? | D14: # | E14: * | F14: МСК | G14: DHL | H14: ДВФО | I14: Владивосток | J14: Владивосток | K14: # | L14: 2015-06-26
A15: 130 | B15: 238 | C15: ? | D15: # | E15: * | F15: МСК | G15: DHL | H15: ПФО | I15: Саратов | J15: Саратов | K15: # | L15: 2018-03-18
A16: 133 | B16: 243 | C16: ? | D16: # | E16: * | F16: КАЗ | G16: своя | H16: ПФО | I16: Казань | J16: Казань | K16: # | L16: 2013-04-11
A17: 801 | B17: 53 | C17: ? | D17: # | E17: * | F17: СПБ | G17: своя | H17: СЗФО | I17: Санкт-Петербург | J17: Санкт-Петербург | K17: # | L17: 2012-08-05
A18: 109 | B18: 207 | C18: ? | D18: # | E18: * | F18: МСК | G18: DHL | H18: СЗФО | I18: Великий Новгород | J18: Великий Новгород | K18: # | L18: 2016-10-14
A19: 151 | B19: 66 | C19: ? | D19: # | E19: * | F19: НСК | G19: своя | H19: СФО | I19: Новосибирск | J19: Новосибирск | K19: # | L19: 2014-10-14
A20: 870 | B20: 172 | C20: ? | D20: # | E20: * | F20: НСК | G20: DHL | H20: СФО | I20: Кемерово | J20: Кемерово | K20: # | L20: 2016-05-16
A21: 110 | B21: 55 | C21: ? | D21: # | E21: * | F21: ЕКБ | G21: своя | H21: УФО | I21: Екатеринбург | J21: Екатеринбург | K21: # | L21: 2013-08-29
A22: 991 | B22: 191 | C22: ? | D22: # | E22: * | F22: ЕКБ | G22: DHL | H22: УФО | I22: Челябинск | J22: Челябинск | K22: # | L22: 2016-08-29
A23: 191 | B23: 72 | C23: ? | D23: # | E23: * | F23: МСК | G23: своя | H23: ЦФО | I23: Москва | J23: Москва | K23: # | L23: 2018-01-02
A24: 561 | B24: 125 | C24: ? | D24: # | E24: * | F24: МСК | G24: своя | H24: ЦФО | I24: МО | J24: Воскресенск | K24: # | L24: 2015-10-14
A25: 401 | B25: 129 | C25: ? | D25: # | E25: * | F25: РНД | G25: своя | H25: ЮФО | I25: Краснодар | J25: Краснодар | K25: # | L25: 2014-11-28
